{"text_format":"1","workbook":"xlsx","n_sheets":5,"sheets":["Бланк Методички","Обработка результатов","Результат","Результаты с расшифровкой","Контакты"],"not_rendered":{"charts":2,"images":1,"macros":1,"external_links":0,"defined_names":0,"comments":0,"pivot_tables":0},"unopened":[],"bounds":{"document_bytes":16777216,"sheet_cells":100000,"rows_first":2000,"rows_last":500,"rows_between":2000,"halvings":0,"cell_chars":16384,"cell_head_chars":4096},"cells_cut":0,"cells_raw":0,"read":"whole","date_system":"1900"}

{"sheet":"Бланк Методички","index":0,"n_rows":108,"n_cols":34,"rows_kept":108,"cut":false,"hidden":false,"merged":[[105,13,105,16],[106,13,106,16],[107,13,107,16],[3,0,6,16],[1,12,1,16],[1,3,1,8],[8,1,8,12],[9,1,9,12],[8,13,8,16],[9,13,9,16],[10,13,10,16],[11,13,11,16],[12,13,12,16],[13,13,13,16],[14,13,14,16],[15,13,15,16],[16,13,16,16],[17,13,17,16],[18,13,18,16],[100,13,100,16],[101,13,101,16],[102,13,102,16],[103,13,103,16],[104,13,104,16],[95,13,95,16],[96,13,96,16],[97,13,97,16],[98,13,98,16],[99,13,99,16],[90,13,90,16],[91,13,91,16],[92,13,92,16],[93,13,93,16],[94,13,94,16],[85,13,85,16],[86,13,86,16],[87,13,87,16],[88,13,88,16],[89,13,89,16],[80,13,80,16],[81,13,81,16],[82,13,82,16],[83,13,83,16],[84,13,84,16],[75,13,75,16],[76,13,76,16],[77,13,77,16],[78,13,78,16],[79,13,79,16],[70,13,70,16],[71,13,71,16],[72,13,72,16],[73,13,73,16],[74,13,74,16],[65,13,65,16],[66,13,66,16],[67,13,67,16],[68,13,68,16],[69,13,69,16],[60,13,60,16],[61,13,61,16],[62,13,62,16],[63,13,63,16],[64,13,64,16],[55,13,55,16],[56,13,56,16],[57,13,57,16],[58,13,58,16],[59,13,59,16],[50,13,50,16],[51,13,51,16],[52,13,52,16],[53,13,53,16],[54,13,54,16],[45,13,45,16],[46,13,46,16],[47,13,47,16],[48,13,48,16],[49,13,49,16],[40,13,40,16],[41,13,41,16],[42,13,42,16],[43,13,43,16],[44,13,44,16],[35,13,35,16],[36,13,36,16],[37,13,37,16],[38,13,38,16],[39,13,39,16],[30,13,30,16],[31,13,31,16],[32,13,32,16],[33,13,33,16],[34,13,34,16],[25,13,25,16],[26,13,26,16],[27,13,27,16],[28,13,28,16],[29,13,29,16],[20,13,20,16],[21,13,21,16],[22,13,22,16],[23,13,23,16],[24,13,24,16],[19,13,19,16],[103,1,103,12],[104,1,104,12],[105,1,105,12],[106,1,106,12],[107,1,107,12],[98,1,98,12],[99,1,99,12],[100,1,100,12],[101,1,101,12],[102,1,102,12],[93,1,93,12],[94,1,94,12],[95,1,95,12],[96,1,96,12],[97,1,97,12],[88,1,88,12],[89,1,89,12],[90,1,90,12],[91,1,91,12],[92,1,92,12],[83,1,83,12],[84,1,84,12],[85,1,85,12],[86,1,86,12],[87,1,87,12],[78,1,78,12],[79,1,79,12],[80,1,80,12],[81,1,81,12],[82,1,82,12],[73,1,73,12],[74,1,74,12],[75,1,75,12],[76,1,76,12],[77,1,77,12],[68,1,68,12],[69,1,69,12],[70,1,70,12],[71,1,71,12],[72,1,72,12],[63,1,63,12],[64,1,64,12],[65,1,65,12],[66,1,66,12],[67,1,67,12],[58,1,58,12],[59,1,59,12],[60,1,60,12],[61,1,61,12],[62,1,62,12],[53,1,53,12],[54,1,54,12],[55,1,55,12],[56,1,56,12],[57,1,57,12],[1,0,1,2],[10,1,10,12],[11,1,11,12],[12,1,12,12],[13,1,13,12],[14,1,14,12],[35,1,35,12],[36,1,36,12],[37,1,37,12],[30,1,30,12],[31,1,31,12],[32,1,32,12],[33,1,33,12],[34,1,34,12],[15,1,15,12],[16,1,16,12],[17,1,17,12],[18,1,18,12],[19,1,19,12],[20,1,20,12],[21,1,21,12],[22,1,22,12],[23,1,23,12],[24,1,24,12],[25,1,25,12],[51,1,51,12],[52,1,52,12],[26,1,26,12],[27,1,27,12],[28,1,28,12],[29,1,29,12],[46,1,46,12],[47,1,47,12],[48,1,48,12],[49,1,49,12],[50,1,50,12],[41,1,41,12],[42,1,42,12],[43,1,43,12],[44,1,44,12],[45,1,45,12],[38,1,38,12],[39,1,39,12],[40,1,40,12]]}
[null,null,null,null,null,null,null,null,null,null,null,null,null,null,null,null,null,null,null,null,null,null,null,null,null,null,null,null,null,null,null,null,10,"5 А"]
["Фамилия, имя",null,null,null,null,null,null,null,null,null,"Класс",null,null,null,null,null,null,null,null,null,null,null,null,null,null,null,null,null,null,null,null,null,11,"5 Б"]
[null,null,null,null,null,null,null,null,null,null,null,null,null,null,null,null,null,null,null,null,null,null,null,null,null,null,null,null,null,null,null,null,13]
["Перед вами 100 юмористических фраз и 10 разных сфер жизни, к которым они могут быть отнесены. Прочтите эти фразы и примите решение, к какой сфере относится каждая из них",null,null,null,null,null,null,null,null,null,null,null,null,null,null,null,null,null,null,null,null,null,null,null,null,null,null,null,null,null,null,"Мальчик",14]
[null,null,null,null,null,null,null,null,null,null,null,null,null,null,null,null,null,null,null,null,null,null,null,null,null,null,null,null,null,null,null,"Девочка",15]
[null,null,null,null,null,null,null,null,null,null,null,null,null,null,null,null,null,null,null,null,null,null,null,null,null,null,null,null,null,null,null,null,16]
[]
[]
[1,"Перья у писателя были, но ему не хватало крыльев.",null,null,null,null,null,null,null,null,null,null,null,null,null,null,null,null,null,"Агрессия — самозащита"]
[2,"Чем дальше хочешь прыгнуть, тем ниже приходится сгибаться.",null,null,null,null,null,null,null,null,null,null,null,null,null,null,null,null,null,"Межполовые отношения"]
[3,"Счастье не в деньгах, а в их количестве.",null,null,null,null,null,null,null,null,null,null,null,null,null,null,null,null,null,"Пагубные привычки"]
[4,"Крик моды понятнее всего на чужом языке.",null,null,null,null,null,null,null,null,null,null,null,null,null,null,null,null,null,"Деньги"]
[5,"Без женщин жить нельзя на свете — тем более в темноте.",null,null,null,null,null,null,null,null,null,null,null,null,null,null,null,null,null,"Мода"]
[6,"Чтобы как следует понять душу человека, лучше всего ее вынуть.",null,null,null,null,null,null,null,null,null,null,null,null,null,null,null,null,null,"Карьера"]
[7,"Дурак, совершенствуясь, становится круглым.",null,null,null,null,null,null,null,null,null,null,null,null,null,null,null,null,null,"Семейные неурядицы"]
[8,"С кем поведешься, с тем и наберешься.",null,null,null,null,null,null,null,null,null,null,null,null,null,null,null,null,null,"Социальные проблемы"]
[9,"Скажи мне, чем ты богат, и я скажу, кем ты служишь.",null,null,null,null,null,null,null,null,null,null,null,null,null,null,null,null,null,"Бездарность в искусстве"]
[10,"Инициатива скандала принадлежала мужу, а звуковое оформление — жене.",null,null,null,null,null,null,null,null,null,null,null,null,null,null,null,null,null,"Человеческая глупость"]
[11,"«Терпение и труд все перетрут», — напомнил Евгений Сазонов супруге, перетирающей гору посуды."]
[12,"Все в природе связано, поэтому без связей лучше не жить."]
[13,"Не брал за горло никого, кроме бутылки."]
[14,"Морская качка изображена художником с таким сходством, что при одном взгляде на картину тошнило."]
[15,"Стояла тихая Варфоломеевская ночь."]
[16,"И фиговый листок отпадает."]
[17,"Одежда! Мой компас земной, а удача—награда за смелость."]
[18,"Не было ни гроша, и не будет ни шиша."]
[19,"Сила земного притяжения ощущается особенно сильно, когда начинаешь подниматься по служебной лестнице."]
[20,"Странная картина открылась взору уважаемого классика: это была экранизация его романа."]
[21,"Если ты считаешь, что уже сделал карьеру, значит, ты не настоящий карьерист."]
[22,"Мечтал о полете мысли, но так и не дождался летной погоды."]
[23,"Выпился в алкоголики."]
[24,"«Семь раз отмерь — один раз отрежь», — объяснял старый палач молодому."]
[25,"Брала от жизни все, что входило в моду."]
[26,"Деньги — тем меньшее зло, чем их меньше."]
[27,"Мне с вами скучно, мне с вами спать хочется."]
[28,"Ему пришла в голову мысль, но, не застав никого, ушла."]
[29,"Выбирая из двух зол — выбирай оба: потом и этого не будет."]
[30,"Она шипела на мужа как газированная вода."]
[31,"Я пью не больше ста граммов, но, выпив сто граммов, я становлюсь другим человеком, и начинаю сначала."]
[32,"Не бойтесь этой гранаты: она — ручная."]
[33,"Дети — цветы жизни. Не давайте им, однако, распускаться."]
[34,"«Не хлебом единым жив человек!» — кричали возбужденные покупатели в очереди за мясом."]
[35,"Сколько прекрасных мыслей гибнет в лабиринтах извилин!"]
[36,"Единственное, что в нем было мужественного, он не мог обнаружить из-за приличий."]
[37,"«Нелегок этот писательский труд», - говорил Евгений Сазонов, ежедневно относя в приемный пункт макулатуры по 20 кг произведений своих коллег"]
[38,"Шагая в ногу с модой, следите за тем, чтобы она не свернула за угол."]
[39,"«Деньги есть деньги!» — в этой фразе есть глубокий смысл, но нет запятой."]
[40,"Призвание хорошо, а звание лучше."]
[41,"Поэт шел в гору, но эта гора не была Парнасом."]
[42,"Стриптиз моды: макси, миди, мини, голый король."]
[43,"Лишь тяжелый кошелек позволяет угнаться за модой."]
[44,"«Душит — значит любит» (Дездемона)."]
[45,"В настойчивых поисках братьев по разуму он оказался в вытрезвителе."]
[46,"Нашел место в жизни — найди жене."]
[47,"Писал с принципиальных кассовых позиций."]
[48,"Защита диссертации пройдет успешнее, если банкет по этому поводу провести на 2-3 часа раньше."]
[49,"Бог создал женщин глупыми, чтобы они любили мужчин."]
[50,"Почему чаще всего неограниченные возможности у неограниченных людей?"]
[51,"Ссорясь, они швыряли друг в друга стульями, но ни семейной жизни, ни стульям это не вредило: семья была крепкая, мебель — тоже."]
[52,"Если умный человек идет в гору, значит, он материально заинтересован."]
[53,"«У меня ничего не осталось, кроме тебя», — признался он ей... за три дня до зарплаты."]
[54,"Круглые дураки в люди не выходят, их выкатывают."]
[55,"Мясник строил свое материальное благополучие на чужих костях."]
[56,"Голова его чего-нибудь да стоила... вместе с бобровой шапкой."]
[57,"«Пить - здоровью вредить», - сказала Юдифь, отсекая голову ассирийскому военачальнику Олоферну, как только тот уснул, опьяненный вином и ласками Юдифи"]
[58,"И на «пегасах» порой гарцуют всадники без головы."]
[59,"Только в очень хорошем настроении она называла получку мужа деньгами."]
[60," Те, кому дают на чай, пьют коньяк."]
[61,"«Удивительное — ядом!» — сказал Сальери."]
[62,"Нарушение моды королями становится модой для подданных."]
[63,"Нетрезвый взгляд на вещи помогает обходиться без них."]
[64,"Жена шефа намного лучше, чем шеф жены."]
[65,"Если у тебя умная жена, будешь есть плоды с дерева познания, если глупая — с дерева жизни."]
[66,"Бдительный завмаг подвергал неусыпному прощупыванию все, что у продавщиц пряталось под прилавком."]
[67,"Когда она заговаривала о черно-бурой лисе, муж смотрел на нее волком."]
[68,"Не только сам укладывался в получку, но укладывал и своих приятелей."]
[69,"Женщине по служебной лестнице легче идти в короткой юбке."]
[70,"Когда музы молчат, говорят жены поэтов."]
[71,"Дороже всего нам обходится то, что нельзя достать ни за какие деньги."]
[72,"Хорошо, когда у женщины есть муж, но еще лучше, если он чужой."]
[73,"В повести так немало пили, что из нее можно было гнать спирт."]
[74,"Мечтает устроиться на доходное лобное место."]
[75,"При вытрезвителе вновь открыта комната матери и ребенка."]
[76,"В этой столовой можно не только червяка заморить."]
[77,"Женщины пьянили его, особенно когда в их обществе он пил водку."]
[78,"Последний крик моды часто раздавался из-под прилавка."]
[79,"Если все время мыслить, то на что же существовать?"]
[80,"Быстро поднимался по служебной лестнице: одна «рука» — тут, другая — там."]
[81,"Мода на форму черепа стоила ей немалого."]
[82,"Чем продуктивнее творчество, тем нужнее холодильник."]
[83,"Ломал голову, а сломал шею."]
[84,"«А здесь я работаю для потомства», — гордо намекнул Евгений Сазонов, указывая посетителям на диван."]
[85,"Закон всеобщего тяготения к шаблону."]
[86,"Всем модам Отелло предпочитал декольте."]
[87,"Интеллигенты умирают сидя."]
[88,"Бараны умеют жить: у них и самая паршивая овца в каракуле ходит."]
[89,"Столько еще дантесов прозябает в неизвестности!"]
[90,"Забытый писатель искал забвение в вине."]
[91,"Многие женятся по любви, потому что не имеют возможности жениться по расчету."]
[92,"Модельеры призваны одевать женщин. И они же все время стараются их раздеть."]
[93,"Бывает осень и у людей."]
[94,"Даже роль Отелло исполняется правдивее, если есть личная заинтересованность."]
[95,"Любопытство к женщинам не должно быть праздным."]
[96,"Перед злоупотреблением не разбалтывай!"]
[97,"Если жена не следит за модой, за ней можно не следить."]
[98,"Не всякая кучка — могучая."]
[99,"Чем приятнее формы, тем безразличнее содержание."]
[100,"Графомания — это потребность души или семейного бюджета."]

{"sheet":"Обработка результатов","index":1,"n_rows":101,"n_cols":13,"rows_kept":101,"cut":false,"hidden":true,"merged":[]}
["Агрессия — самозащита","Межполовые отношения","Пагубные привычки","Деньги","Мода","Карьера","Семейные неурядицы","Социальные проблемы","Бездарность в искусстве","Человеческая глупость"]
[{"$f":"COUNTIF(L2:L101,1)","v":0},{"$f":"COUNTIF(L2:L101,2)","v":0},{"$f":"COUNTIF(L2:L101,3)","v":0},{"$f":"COUNTIF(L2:L101,4)","v":0},{"$f":"COUNTIF(L2:L101,5)","v":0},{"$f":"COUNTIF(L2:L101,6)","v":0},{"$f":"COUNTIF(L2:L101,7)","v":0},{"$f":"COUNTIF(L2:L101,8)","v":0},{"$f":"COUNTIF(L2:L101,9)","v":0},{"$f":"COUNTIF(L2:L101,10)","v":0},null,{"$f":"IF('Бланк Методички'!N9='Бланк Методички'!$T$9,1,IF('Бланк Методички'!N9='Бланк Методички'!$T$10,2,IF('Бланк Методички'!N9='Бланк Методички'!$T$11,3,IF('Бланк Методички'!N9='Бланк Методички'!$T$12,4,IF('Бланк Методички'!N9='Бланк Методички'!$T$13,5,IF('Бланк Методички'!N9='Бланк Методички'!$T$14,6,IF('Бланк Методички'!N9='Бланк Методички'!$T$15,7,IF('Бланк Методички'!N9='Бланк Методички'!$T$16,8,IF('Бланк Методички'!N9='Бланк Методички'!$T$17,9,IF('Бланк Методички'!N9='Бланк Методички'!$T$18,10,))))))))))","v":0},1]
[null,null,null,null,null,null,null,null,null,null,null,{"$f":"IF('Бланк Методички'!N10='Бланк Методички'!$T$9,1,IF('Бланк Методички'!N10='Бланк Методички'!$T$10,2,IF('Бланк Методички'!N10='Бланк Методички'!$T$11,3,IF('Бланк Методички'!N10='Бланк Методички'!$T$12,4,IF('Бланк Методички'!N10='Бланк Методички'!$T$13,5,IF('Бланк Методички'!N10='Бланк Методички'!$T$14,6,IF('Бланк Методички'!N10='Бланк Методички'!$T$15,7,IF('Бланк Методички'!N10='Бланк Методички'!$T$16,8,IF('Бланк Методички'!N10='Бланк Методички'!$T$17,9,IF('Бланк Методички'!N10='Бланк Методички'!$T$18,10,))))))))))","v":0},2]
[null,null,null,null,null,null,null,null,null,null,null,{"$f":"IF('Бланк Методички'!N11='Бланк Методички'!$T$9,1,IF('Бланк Методички'!N11='Бланк Методички'!$T$10,2,IF('Бланк Методички'!N11='Бланк Методички'!$T$11,3,IF('Бланк Методички'!N11='Бланк Методички'!$T$12,4,IF('Бланк Методички'!N11='Бланк Методички'!$T$13,5,IF('Бланк Методички'!N11='Бланк Методички'!$T$14,6,IF('Бланк Методички'!N11='Бланк Методички'!$T$15,7,IF('Бланк Методички'!N11='Бланк Методички'!$T$16,8,IF('Бланк Методички'!N11='Бланк Методички'!$T$17,9,IF('Бланк Методички'!N11='Бланк Методички'!$T$18,10,))))))))))","v":0},3]
[null,null,null,null,null,null,null,null,null,null,null,{"$f":"IF('Бланк Методички'!N12='Бланк Методички'!$T$9,1,IF('Бланк Методички'!N12='Бланк Методички'!$T$10,2,IF('Бланк Методички'!N12='Бланк Методички'!$T$11,3,IF('Бланк Методички'!N12='Бланк Методички'!$T$12,4,IF('Бланк Методички'!N12='Бланк Методички'!$T$13,5,IF('Бланк Методички'!N12='Бланк Методички'!$T$14,6,IF('Бланк Методички'!N12='Бланк Методички'!$T$15,7,IF('Бланк Методички'!N12='Бланк Методички'!$T$16,8,IF('Бланк Методички'!N12='Бланк Методички'!$T$17,9,IF('Бланк Методички'!N12='Бланк Методички'!$T$18,10,))))))))))","v":0},4]
[null,null,null,null,null,null,null,null,null,null,null,{"$f":"IF('Бланк Методички'!N13='Бланк Методички'!$T$9,1,IF('Бланк Методички'!N13='Бланк Методички'!$T$10,2,IF('Бланк Методички'!N13='Бланк Методички'!$T$11,3,IF('Бланк Методички'!N13='Бланк Методички'!$T$12,4,IF('Бланк Методички'!N13='Бланк Методички'!$T$13,5,IF('Бланк Методички'!N13='Бланк Методички'!$T$14,6,IF('Бланк Методички'!N13='Бланк Методички'!$T$15,7,IF('Бланк Методички'!N13='Бланк Методички'!$T$16,8,IF('Бланк Методички'!N13='Бланк Методички'!$T$17,9,IF('Бланк Методички'!N13='Бланк Методички'!$T$18,10,))))))))))","v":0},5]
[null,null,null,null,null,null,null,null,null,null,null,{"$f":"IF('Бланк Методички'!N14='Бланк Методички'!$T$9,1,IF('Бланк Методички'!N14='Бланк Методички'!$T$10,2,IF('Бланк Методички'!N14='Бланк Методички'!$T$11,3,IF('Бланк Методички'!N14='Бланк Методички'!$T$12,4,IF('Бланк Методички'!N14='Бланк Методички'!$T$13,5,IF('Бланк Методички'!N14='Бланк Методички'!$T$14,6,IF('Бланк Методички'!N14='Бланк Методички'!$T$15,7,IF('Бланк Методички'!N14='Бланк Методички'!$T$16,8,IF('Бланк Методички'!N14='Бланк Методички'!$T$17,9,IF('Бланк Методички'!N14='Бланк Методички'!$T$18,10,))))))))))","v":0},6]
[null,null,null,null,null,null,null,null,null,null,null,{"$f":"IF('Бланк Методички'!N15='Бланк Методички'!$T$9,1,IF('Бланк Методички'!N15='Бланк Методички'!$T$10,2,IF('Бланк Методички'!N15='Бланк Методички'!$T$11,3,IF('Бланк Методички'!N15='Бланк Методички'!$T$12,4,IF('Бланк Методички'!N15='Бланк Методички'!$T$13,5,IF('Бланк Методички'!N15='Бланк Методички'!$T$14,6,IF('Бланк Методички'!N15='Бланк Методички'!$T$15,7,IF('Бланк Методички'!N15='Бланк Методички'!$T$16,8,IF('Бланк Методички'!N15='Бланк Методички'!$T$17,9,IF('Бланк Методички'!N15='Бланк Методички'!$T$18,10,))))))))))","v":0},7]
[null,null,null,null,null,null,null,null,null,null,null,{"$f":"IF('Бланк Методички'!N16='Бланк Методички'!$T$9,1,IF('Бланк Методички'!N16='Бланк Методички'!$T$10,2,IF('Бланк Методички'!N16='Бланк Методички'!$T$11,3,IF('Бланк Методички'!N16='Бланк Методички'!$T$12,4,IF('Бланк Методички'!N16='Бланк Методички'!$T$13,5,IF('Бланк Методички'!N16='Бланк Методички'!$T$14,6,IF('Бланк Методички'!N16='Бланк Методички'!$T$15,7,IF('Бланк Методички'!N16='Бланк Методички'!$T$16,8,IF('Бланк Методички'!N16='Бланк Методички'!$T$17,9,IF('Бланк Методички'!N16='Бланк Методички'!$T$18,10,))))))))))","v":0},8]
[null,null,null,null,null,null,null,null,null,null,null,{"$f":"IF('Бланк Методички'!N17='Бланк Методички'!$T$9,1,IF('Бланк Методички'!N17='Бланк Методички'!$T$10,2,IF('Бланк Методички'!N17='Бланк Методички'!$T$11,3,IF('Бланк Методички'!N17='Бланк Методички'!$T$12,4,IF('Бланк Методички'!N17='Бланк Методички'!$T$13,5,IF('Бланк Методички'!N17='Бланк Методички'!$T$14,6,IF('Бланк Методички'!N17='Бланк Методички'!$T$15,7,IF('Бланк Методички'!N17='Бланк Методички'!$T$16,8,IF('Бланк Методички'!N17='Бланк Методички'!$T$17,9,IF('Бланк Методички'!N17='Бланк Методички'!$T$18,10,))))))))))","v":0},9]
[null,null,null,null,null,null,null,null,null,null,null,{"$f":"IF('Бланк Методички'!N18='Бланк Методички'!$T$9,1,IF('Бланк Методички'!N18='Бланк Методички'!$T$10,2,IF('Бланк Методички'!N18='Бланк Методички'!$T$11,3,IF('Бланк Методички'!N18='Бланк Методички'!$T$12,4,IF('Бланк Методички'!N18='Бланк Методички'!$T$13,5,IF('Бланк Методички'!N18='Бланк Методички'!$T$14,6,IF('Бланк Методички'!N18='Бланк Методички'!$T$15,7,IF('Бланк Методички'!N18='Бланк Методички'!$T$16,8,IF('Бланк Методички'!N18='Бланк Методички'!$T$17,9,IF('Бланк Методички'!N18='Бланк Методички'!$T$18,10,))))))))))","v":0},10]
[null,null,null,null,null,null,null,null,null,null,null,{"$f":"IF('Бланк Методички'!N19='Бланк Методички'!$T$9,1,IF('Бланк Методички'!N19='Бланк Методички'!$T$10,2,IF('Бланк Методички'!N19='Бланк Методички'!$T$11,3,IF('Бланк Методички'!N19='Бланк Методички'!$T$12,4,IF('Бланк Методички'!N19='Бланк Методички'!$T$13,5,IF('Бланк Методички'!N19='Бланк Методички'!$T$14,6,IF('Бланк Методички'!N19='Бланк Методички'!$T$15,7,IF('Бланк Методички'!N19='Бланк Методички'!$T$16,8,IF('Бланк Методички'!N19='Бланк Методички'!$T$17,9,IF('Бланк Методички'!N19='Бланк Методички'!$T$18,10,))))))))))","v":0},11]
[null,null,null,null,null,null,null,null,null,null,null,{"$f":"IF('Бланк Методички'!N20='Бланк Методички'!$T$9,1,IF('Бланк Методички'!N20='Бланк Методички'!$T$10,2,IF('Бланк Методички'!N20='Бланк Методички'!$T$11,3,IF('Бланк Методички'!N20='Бланк Методички'!$T$12,4,IF('Бланк Методички'!N20='Бланк Методички'!$T$13,5,IF('Бланк Методички'!N20='Бланк Методички'!$T$14,6,IF('Бланк Методички'!N20='Бланк Методички'!$T$15,7,IF('Бланк Методички'!N20='Бланк Методички'!$T$16,8,IF('Бланк Методички'!N20='Бланк Методички'!$T$17,9,IF('Бланк Методички'!N20='Бланк Методички'!$T$18,10,))))))))))","v":0},12]
[null,null,null,null,null,null,null,null,null,null,null,{"$f":"IF('Бланк Методички'!N21='Бланк Методички'!$T$9,1,IF('Бланк Методички'!N21='Бланк Методички'!$T$10,2,IF('Бланк Методички'!N21='Бланк Методички'!$T$11,3,IF('Бланк Методички'!N21='Бланк Методички'!$T$12,4,IF('Бланк Методички'!N21='Бланк Методички'!$T$13,5,IF('Бланк Методички'!N21='Бланк Методички'!$T$14,6,IF('Бланк Методички'!N21='Бланк Методички'!$T$15,7,IF('Бланк Методички'!N21='Бланк Методички'!$T$16,8,IF('Бланк Методички'!N21='Бланк Методички'!$T$17,9,IF('Бланк Методички'!N21='Бланк Методички'!$T$18,10,))))))))))","v":0},13]
[null,null,null,null,null,null,null,null,null,null,null,{"$f":"IF('Бланк Методички'!N22='Бланк Методички'!$T$9,1,IF('Бланк Методички'!N22='Бланк Методички'!$T$10,2,IF('Бланк Методички'!N22='Бланк Методички'!$T$11,3,IF('Бланк Методички'!N22='Бланк Методички'!$T$12,4,IF('Бланк Методички'!N22='Бланк Методички'!$T$13,5,IF('Бланк Методички'!N22='Бланк Методички'!$T$14,6,IF('Бланк Методички'!N22='Бланк Методички'!$T$15,7,IF('Бланк Методички'!N22='Бланк Методички'!$T$16,8,IF('Бланк Методички'!N22='Бланк Методички'!$T$17,9,IF('Бланк Методички'!N22='Бланк Методички'!$T$18,10,))))))))))","v":0},14]
[null,null,null,null,null,null,null,null,null,null,null,{"$f":"IF('Бланк Методички'!N23='Бланк Методички'!$T$9,1,IF('Бланк Методички'!N23='Бланк Методички'!$T$10,2,IF('Бланк Методички'!N23='Бланк Методички'!$T$11,3,IF('Бланк Методички'!N23='Бланк Методички'!$T$12,4,IF('Бланк Методички'!N23='Бланк Методички'!$T$13,5,IF('Бланк Методички'!N23='Бланк Методички'!$T$14,6,IF('Бланк Методички'!N23='Бланк Методички'!$T$15,7,IF('Бланк Методички'!N23='Бланк Методички'!$T$16,8,IF('Бланк Методички'!N23='Бланк Методички'!$T$17,9,IF('Бланк Методички'!N23='Бланк Методички'!$T$18,10,))))))))))","v":0},15]
[null,null,null,null,null,null,null,null,null,null,null,{"$f":"IF('Бланк Методички'!N24='Бланк Методички'!$T$9,1,IF('Бланк Методички'!N24='Бланк Методички'!$T$10,2,IF('Бланк Методички'!N24='Бланк Методички'!$T$11,3,IF('Бланк Методички'!N24='Бланк Методички'!$T$12,4,IF('Бланк Методички'!N24='Бланк Методички'!$T$13,5,IF('Бланк Методички'!N24='Бланк Методички'!$T$14,6,IF('Бланк Методички'!N24='Бланк Методички'!$T$15,7,IF('Бланк Методички'!N24='Бланк Методички'!$T$16,8,IF('Бланк Методички'!N24='Бланк Методички'!$T$17,9,IF('Бланк Методички'!N24='Бланк Методички'!$T$18,10,))))))))))","v":0},16]
[null,null,null,null,null,null,null,null,null,null,null,{"$f":"IF('Бланк Методички'!N25='Бланк Методички'!$T$9,1,IF('Бланк Методички'!N25='Бланк Методички'!$T$10,2,IF('Бланк Методички'!N25='Бланк Методички'!$T$11,3,IF('Бланк Методички'!N25='Бланк Методички'!$T$12,4,IF('Бланк Методички'!N25='Бланк Методички'!$T$13,5,IF('Бланк Методички'!N25='Бланк Методички'!$T$14,6,IF('Бланк Методички'!N25='Бланк Методички'!$T$15,7,IF('Бланк Методички'!N25='Бланк Методички'!$T$16,8,IF('Бланк Методички'!N25='Бланк Методички'!$T$17,9,IF('Бланк Методички'!N25='Бланк Методички'!$T$18,10,))))))))))","v":0},17]
[null,null,null,null,null,null,null,null,null,null,null,{"$f":"IF('Бланк Методички'!N26='Бланк Методички'!$T$9,1,IF('Бланк Методички'!N26='Бланк Методички'!$T$10,2,IF('Бланк Методички'!N26='Бланк Методички'!$T$11,3,IF('Бланк Методички'!N26='Бланк Методички'!$T$12,4,IF('Бланк Методички'!N26='Бланк Методички'!$T$13,5,IF('Бланк Методички'!N26='Бланк Методички'!$T$14,6,IF('Бланк Методички'!N26='Бланк Методички'!$T$15,7,IF('Бланк Методички'!N26='Бланк Методички'!$T$16,8,IF('Бланк Методички'!N26='Бланк Методички'!$T$17,9,IF('Бланк Методички'!N26='Бланк Методички'!$T$18,10,))))))))))","v":0},18]
[null,null,null,null,null,null,null,null,null,null,null,{"$f":"IF('Бланк Методички'!N27='Бланк Методички'!$T$9,1,IF('Бланк Методички'!N27='Бланк Методички'!$T$10,2,IF('Бланк Методички'!N27='Бланк Методички'!$T$11,3,IF('Бланк Методички'!N27='Бланк Методички'!$T$12,4,IF('Бланк Методички'!N27='Бланк Методички'!$T$13,5,IF('Бланк Методички'!N27='Бланк Методички'!$T$14,6,IF('Бланк Методички'!N27='Бланк Методички'!$T$15,7,IF('Бланк Методички'!N27='Бланк Методички'!$T$16,8,IF('Бланк Методички'!N27='Бланк Методички'!$T$17,9,IF('Бланк Методички'!N27='Бланк Методички'!$T$18,10,))))))))))","v":0},19]
[null,null,null,null,null,null,null,null,null,null,null,{"$f":"IF('Бланк Методички'!N28='Бланк Методички'!$T$9,1,IF('Бланк Методички'!N28='Бланк Методички'!$T$10,2,IF('Бланк Методички'!N28='Бланк Методички'!$T$11,3,IF('Бланк Методички'!N28='Бланк Методички'!$T$12,4,IF('Бланк Методички'!N28='Бланк Методички'!$T$13,5,IF('Бланк Методички'!N28='Бланк Методички'!$T$14,6,IF('Бланк Методички'!N28='Бланк Методички'!$T$15,7,IF('Бланк Методички'!N28='Бланк Методички'!$T$16,8,IF('Бланк Методички'!N28='Бланк Методички'!$T$17,9,IF('Бланк Методички'!N28='Бланк Методички'!$T$18,10,))))))))))","v":0},20]
[null,null,null,null,null,null,null,null,null,null,null,{"$f":"IF('Бланк Методички'!N29='Бланк Методички'!$T$9,1,IF('Бланк Методички'!N29='Бланк Методички'!$T$10,2,IF('Бланк Методички'!N29='Бланк Методички'!$T$11,3,IF('Бланк Методички'!N29='Бланк Методички'!$T$12,4,IF('Бланк Методички'!N29='Бланк Методички'!$T$13,5,IF('Бланк Методички'!N29='Бланк Методички'!$T$14,6,IF('Бланк Методички'!N29='Бланк Методички'!$T$15,7,IF('Бланк Методички'!N29='Бланк Методички'!$T$16,8,IF('Бланк Методички'!N29='Бланк Методички'!$T$17,9,IF('Бланк Методички'!N29='Бланк Методички'!$T$18,10,))))))))))","v":0},21]
[null,null,null,null,null,null,null,null,null,null,null,{"$f":"IF('Бланк Методички'!N30='Бланк Методички'!$T$9,1,IF('Бланк Методички'!N30='Бланк Методички'!$T$10,2,IF('Бланк Методички'!N30='Бланк Методички'!$T$11,3,IF('Бланк Методички'!N30='Бланк Методички'!$T$12,4,IF('Бланк Методички'!N30='Бланк Методички'!$T$13,5,IF('Бланк Методички'!N30='Бланк Методички'!$T$14,6,IF('Бланк Методички'!N30='Бланк Методички'!$T$15,7,IF('Бланк Методички'!N30='Бланк Методички'!$T$16,8,IF('Бланк Методички'!N30='Бланк Методички'!$T$17,9,IF('Бланк Методички'!N30='Бланк Методички'!$T$18,10,))))))))))","v":0},22]
[null,null,null,null,null,null,null,null,null,null,null,{"$f":"IF('Бланк Методички'!N31='Бланк Методички'!$T$9,1,IF('Бланк Методички'!N31='Бланк Методички'!$T$10,2,IF('Бланк Методички'!N31='Бланк Методички'!$T$11,3,IF('Бланк Методички'!N31='Бланк Методички'!$T$12,4,IF('Бланк Методички'!N31='Бланк Методички'!$T$13,5,IF('Бланк Методички'!N31='Бланк Методички'!$T$14,6,IF('Бланк Методички'!N31='Бланк Методички'!$T$15,7,IF('Бланк Методички'!N31='Бланк Методички'!$T$16,8,IF('Бланк Методички'!N31='Бланк Методички'!$T$17,9,IF('Бланк Методички'!N31='Бланк Методички'!$T$18,10,))))))))))","v":0},23]
[null,null,null,null,null,null,null,null,null,null,null,{"$f":"IF('Бланк Методички'!N32='Бланк Методички'!$T$9,1,IF('Бланк Методички'!N32='Бланк Методички'!$T$10,2,IF('Бланк Методички'!N32='Бланк Методички'!$T$11,3,IF('Бланк Методички'!N32='Бланк Методички'!$T$12,4,IF('Бланк Методички'!N32='Бланк Методички'!$T$13,5,IF('Бланк Методички'!N32='Бланк Методички'!$T$14,6,IF('Бланк Методички'!N32='Бланк Методички'!$T$15,7,IF('Бланк Методички'!N32='Бланк Методички'!$T$16,8,IF('Бланк Методички'!N32='Бланк Методички'!$T$17,9,IF('Бланк Методички'!N32='Бланк Методички'!$T$18,10,))))))))))","v":0},24]
[null,null,null,null,null,null,null,null,null,null,null,{"$f":"IF('Бланк Методички'!N33='Бланк Методички'!$T$9,1,IF('Бланк Методички'!N33='Бланк Методички'!$T$10,2,IF('Бланк Методички'!N33='Бланк Методички'!$T$11,3,IF('Бланк Методички'!N33='Бланк Методички'!$T$12,4,IF('Бланк Методички'!N33='Бланк Методички'!$T$13,5,IF('Бланк Методички'!N33='Бланк Методички'!$T$14,6,IF('Бланк Методички'!N33='Бланк Методички'!$T$15,7,IF('Бланк Методички'!N33='Бланк Методички'!$T$16,8,IF('Бланк Методички'!N33='Бланк Методички'!$T$17,9,IF('Бланк Методички'!N33='Бланк Методички'!$T$18,10,))))))))))","v":0},25]
[null,null,null,null,null,null,null,null,null,null,null,{"$f":"IF('Бланк Методички'!N34='Бланк Методички'!$T$9,1,IF('Бланк Методички'!N34='Бланк Методички'!$T$10,2,IF('Бланк Методички'!N34='Бланк Методички'!$T$11,3,IF('Бланк Методички'!N34='Бланк Методички'!$T$12,4,IF('Бланк Методички'!N34='Бланк Методички'!$T$13,5,IF('Бланк Методички'!N34='Бланк Методички'!$T$14,6,IF('Бланк Методички'!N34='Бланк Методички'!$T$15,7,IF('Бланк Методички'!N34='Бланк Методички'!$T$16,8,IF('Бланк Методички'!N34='Бланк Методички'!$T$17,9,IF('Бланк Методички'!N34='Бланк Методички'!$T$18,10,))))))))))","v":0},26]
[null,null,null,null,null,null,null,null,null,null,null,{"$f":"IF('Бланк Методички'!N35='Бланк Методички'!$T$9,1,IF('Бланк Методички'!N35='Бланк Методички'!$T$10,2,IF('Бланк Методички'!N35='Бланк Методички'!$T$11,3,IF('Бланк Методички'!N35='Бланк Методички'!$T$12,4,IF('Бланк Методички'!N35='Бланк Методички'!$T$13,5,IF('Бланк Методички'!N35='Бланк Методички'!$T$14,6,IF('Бланк Методички'!N35='Бланк Методички'!$T$15,7,IF('Бланк Методички'!N35='Бланк Методички'!$T$16,8,IF('Бланк Методички'!N35='Бланк Методички'!$T$17,9,IF('Бланк Методички'!N35='Бланк Методички'!$T$18,10,))))))))))","v":0},27]
[null,null,null,null,null,null,null,null,null,null,null,{"$f":"IF('Бланк Методички'!N36='Бланк Методички'!$T$9,1,IF('Бланк Методички'!N36='Бланк Методички'!$T$10,2,IF('Бланк Методички'!N36='Бланк Методички'!$T$11,3,IF('Бланк Методички'!N36='Бланк Методички'!$T$12,4,IF('Бланк Методички'!N36='Бланк Методички'!$T$13,5,IF('Бланк Методички'!N36='Бланк Методички'!$T$14,6,IF('Бланк Методички'!N36='Бланк Методички'!$T$15,7,IF('Бланк Методички'!N36='Бланк Методички'!$T$16,8,IF('Бланк Методички'!N36='Бланк Методички'!$T$17,9,IF('Бланк Методички'!N36='Бланк Методички'!$T$18,10,))))))))))","v":0},28]
[null,null,null,null,null,null,null,null,null,null,null,{"$f":"IF('Бланк Методички'!N37='Бланк Методички'!$T$9,1,IF('Бланк Методички'!N37='Бланк Методички'!$T$10,2,IF('Бланк Методички'!N37='Бланк Методички'!$T$11,3,IF('Бланк Методички'!N37='Бланк Методички'!$T$12,4,IF('Бланк Методички'!N37='Бланк Методички'!$T$13,5,IF('Бланк Методички'!N37='Бланк Методички'!$T$14,6,IF('Бланк Методички'!N37='Бланк Методички'!$T$15,7,IF('Бланк Методички'!N37='Бланк Методички'!$T$16,8,IF('Бланк Методички'!N37='Бланк Методички'!$T$17,9,IF('Бланк Методички'!N37='Бланк Методички'!$T$18,10,))))))))))","v":0},29]
[null,null,null,null,null,null,null,null,null,null,null,{"$f":"IF('Бланк Методички'!N38='Бланк Методички'!$T$9,1,IF('Бланк Методички'!N38='Бланк Методички'!$T$10,2,IF('Бланк Методички'!N38='Бланк Методички'!$T$11,3,IF('Бланк Методички'!N38='Бланк Методички'!$T$12,4,IF('Бланк Методички'!N38='Бланк Методички'!$T$13,5,IF('Бланк Методички'!N38='Бланк Методички'!$T$14,6,IF('Бланк Методички'!N38='Бланк Методички'!$T$15,7,IF('Бланк Методички'!N38='Бланк Методички'!$T$16,8,IF('Бланк Методички'!N38='Бланк Методички'!$T$17,9,IF('Бланк Методички'!N38='Бланк Методички'!$T$18,10,))))))))))","v":0},30]
[null,null,null,null,null,null,null,null,null,null,null,{"$f":"IF('Бланк Методички'!N39='Бланк Методички'!$T$9,1,IF('Бланк Методички'!N39='Бланк Методички'!$T$10,2,IF('Бланк Методички'!N39='Бланк Методички'!$T$11,3,IF('Бланк Методички'!N39='Бланк Методички'!$T$12,4,IF('Бланк Методички'!N39='Бланк Методички'!$T$13,5,IF('Бланк Методички'!N39='Бланк Методички'!$T$14,6,IF('Бланк Методички'!N39='Бланк Методички'!$T$15,7,IF('Бланк Методички'!N39='Бланк Методички'!$T$16,8,IF('Бланк Методички'!N39='Бланк Методички'!$T$17,9,IF('Бланк Методички'!N39='Бланк Методички'!$T$18,10,))))))))))","v":0},31]
[null,null,null,null,null,null,null,null,null,null,null,{"$f":"IF('Бланк Методички'!N40='Бланк Методички'!$T$9,1,IF('Бланк Методички'!N40='Бланк Методички'!$T$10,2,IF('Бланк Методички'!N40='Бланк Методички'!$T$11,3,IF('Бланк Методички'!N40='Бланк Методички'!$T$12,4,IF('Бланк Методички'!N40='Бланк Методички'!$T$13,5,IF('Бланк Методички'!N40='Бланк Методички'!$T$14,6,IF('Бланк Методички'!N40='Бланк Методички'!$T$15,7,IF('Бланк Методички'!N40='Бланк Методички'!$T$16,8,IF('Бланк Методички'!N40='Бланк Методички'!$T$17,9,IF('Бланк Методички'!N40='Бланк Методички'!$T$18,10,))))))))))","v":0},32]
[null,null,null,null,null,null,null,null,null,null,null,{"$f":"IF('Бланк Методички'!N41='Бланк Методички'!$T$9,1,IF('Бланк Методички'!N41='Бланк Методички'!$T$10,2,IF('Бланк Методички'!N41='Бланк Методички'!$T$11,3,IF('Бланк Методички'!N41='Бланк Методички'!$T$12,4,IF('Бланк Методички'!N41='Бланк Методички'!$T$13,5,IF('Бланк Методички'!N41='Бланк Методички'!$T$14,6,IF('Бланк Методички'!N41='Бланк Методички'!$T$15,7,IF('Бланк Методички'!N41='Бланк Методички'!$T$16,8,IF('Бланк Методички'!N41='Бланк Методички'!$T$17,9,IF('Бланк Методички'!N41='Бланк Методички'!$T$18,10,))))))))))","v":0},33]
[null,null,null,null,null,null,null,null,null,null,null,{"$f":"IF('Бланк Методички'!N42='Бланк Методички'!$T$9,1,IF('Бланк Методички'!N42='Бланк Методички'!$T$10,2,IF('Бланк Методички'!N42='Бланк Методички'!$T$11,3,IF('Бланк Методички'!N42='Бланк Методички'!$T$12,4,IF('Бланк Методички'!N42='Бланк Методички'!$T$13,5,IF('Бланк Методички'!N42='Бланк Методички'!$T$14,6,IF('Бланк Методички'!N42='Бланк Методички'!$T$15,7,IF('Бланк Методички'!N42='Бланк Методички'!$T$16,8,IF('Бланк Методички'!N42='Бланк Методички'!$T$17,9,IF('Бланк Методички'!N42='Бланк Методички'!$T$18,10,))))))))))","v":0},34]
[null,null,null,null,null,null,null,null,null,null,null,{"$f":"IF('Бланк Методички'!N43='Бланк Методички'!$T$9,1,IF('Бланк Методички'!N43='Бланк Методички'!$T$10,2,IF('Бланк Методички'!N43='Бланк Методички'!$T$11,3,IF('Бланк Методички'!N43='Бланк Методички'!$T$12,4,IF('Бланк Методички'!N43='Бланк Методички'!$T$13,5,IF('Бланк Методички'!N43='Бланк Методички'!$T$14,6,IF('Бланк Методички'!N43='Бланк Методички'!$T$15,7,IF('Бланк Методички'!N43='Бланк Методички'!$T$16,8,IF('Бланк Методички'!N43='Бланк Методички'!$T$17,9,IF('Бланк Методички'!N43='Бланк Методички'!$T$18,10,))))))))))","v":0},35]
[null,null,null,null,null,null,null,null,null,null,null,{"$f":"IF('Бланк Методички'!N44='Бланк Методички'!$T$9,1,IF('Бланк Методички'!N44='Бланк Методички'!$T$10,2,IF('Бланк Методички'!N44='Бланк Методички'!$T$11,3,IF('Бланк Методички'!N44='Бланк Методички'!$T$12,4,IF('Бланк Методички'!N44='Бланк Методички'!$T$13,5,IF('Бланк Методички'!N44='Бланк Методички'!$T$14,6,IF('Бланк Методички'!N44='Бланк Методички'!$T$15,7,IF('Бланк Методички'!N44='Бланк Методички'!$T$16,8,IF('Бланк Методички'!N44='Бланк Методички'!$T$17,9,IF('Бланк Методички'!N44='Бланк Методички'!$T$18,10,))))))))))","v":0},36]
[null,null,null,null,null,null,null,null,null,null,null,{"$f":"IF('Бланк Методички'!N45='Бланк Методички'!$T$9,1,IF('Бланк Методички'!N45='Бланк Методички'!$T$10,2,IF('Бланк Методички'!N45='Бланк Методички'!$T$11,3,IF('Бланк Методички'!N45='Бланк Методички'!$T$12,4,IF('Бланк Методички'!N45='Бланк Методички'!$T$13,5,IF('Бланк Методички'!N45='Бланк Методички'!$T$14,6,IF('Бланк Методички'!N45='Бланк Методички'!$T$15,7,IF('Бланк Методички'!N45='Бланк Методички'!$T$16,8,IF('Бланк Методички'!N45='Бланк Методички'!$T$17,9,IF('Бланк Методички'!N45='Бланк Методички'!$T$18,10,))))))))))","v":0},37]
[null,null,null,null,null,null,null,null,null,null,null,{"$f":"IF('Бланк Методички'!N46='Бланк Методички'!$T$9,1,IF('Бланк Методички'!N46='Бланк Методички'!$T$10,2,IF('Бланк Методички'!N46='Бланк Методички'!$T$11,3,IF('Бланк Методички'!N46='Бланк Методички'!$T$12,4,IF('Бланк Методички'!N46='Бланк Методички'!$T$13,5,IF('Бланк Методички'!N46='Бланк Методички'!$T$14,6,IF('Бланк Методички'!N46='Бланк Методички'!$T$15,7,IF('Бланк Методички'!N46='Бланк Методички'!$T$16,8,IF('Бланк Методички'!N46='Бланк Методички'!$T$17,9,IF('Бланк Методички'!N46='Бланк Методички'!$T$18,10,))))))))))","v":0},38]
[null,null,null,null,null,null,null,null,null,null,null,{"$f":"IF('Бланк Методички'!N47='Бланк Методички'!$T$9,1,IF('Бланк Методички'!N47='Бланк Методички'!$T$10,2,IF('Бланк Методички'!N47='Бланк Методички'!$T$11,3,IF('Бланк Методички'!N47='Бланк Методички'!$T$12,4,IF('Бланк Методички'!N47='Бланк Методички'!$T$13,5,IF('Бланк Методички'!N47='Бланк Методички'!$T$14,6,IF('Бланк Методички'!N47='Бланк Методички'!$T$15,7,IF('Бланк Методички'!N47='Бланк Методички'!$T$16,8,IF('Бланк Методички'!N47='Бланк Методички'!$T$17,9,IF('Бланк Методички'!N47='Бланк Методички'!$T$18,10,))))))))))","v":0},39]
[null,null,null,null,null,null,null,null,null,null,null,{"$f":"IF('Бланк Методички'!N48='Бланк Методички'!$T$9,1,IF('Бланк Методички'!N48='Бланк Методички'!$T$10,2,IF('Бланк Методички'!N48='Бланк Методички'!$T$11,3,IF('Бланк Методички'!N48='Бланк Методички'!$T$12,4,IF('Бланк Методички'!N48='Бланк Методички'!$T$13,5,IF('Бланк Методички'!N48='Бланк Методички'!$T$14,6,IF('Бланк Методички'!N48='Бланк Методички'!$T$15,7,IF('Бланк Методички'!N48='Бланк Методички'!$T$16,8,IF('Бланк Методички'!N48='Бланк Методички'!$T$17,9,IF('Бланк Методички'!N48='Бланк Методички'!$T$18,10,))))))))))","v":0},40]
[null,null,null,null,null,null,null,null,null,null,null,{"$f":"IF('Бланк Методички'!N49='Бланк Методички'!$T$9,1,IF('Бланк Методички'!N49='Бланк Методички'!$T$10,2,IF('Бланк Методички'!N49='Бланк Методички'!$T$11,3,IF('Бланк Методички'!N49='Бланк Методички'!$T$12,4,IF('Бланк Методички'!N49='Бланк Методички'!$T$13,5,IF('Бланк Методички'!N49='Бланк Методички'!$T$14,6,IF('Бланк Методички'!N49='Бланк Методички'!$T$15,7,IF('Бланк Методички'!N49='Бланк Методички'!$T$16,8,IF('Бланк Методички'!N49='Бланк Методички'!$T$17,9,IF('Бланк Методички'!N49='Бланк Методички'!$T$18,10,))))))))))","v":0},41]
[null,null,null,null,null,null,null,null,null,null,null,{"$f":"IF('Бланк Методички'!N50='Бланк Методички'!$T$9,1,IF('Бланк Методички'!N50='Бланк Методички'!$T$10,2,IF('Бланк Методички'!N50='Бланк Методички'!$T$11,3,IF('Бланк Методички'!N50='Бланк Методички'!$T$12,4,IF('Бланк Методички'!N50='Бланк Методички'!$T$13,5,IF('Бланк Методички'!N50='Бланк Методички'!$T$14,6,IF('Бланк Методички'!N50='Бланк Методички'!$T$15,7,IF('Бланк Методички'!N50='Бланк Методички'!$T$16,8,IF('Бланк Методички'!N50='Бланк Методички'!$T$17,9,IF('Бланк Методички'!N50='Бланк Методички'!$T$18,10,))))))))))","v":0},42]
[null,null,null,null,null,null,null,null,null,null,null,{"$f":"IF('Бланк Методички'!N51='Бланк Методички'!$T$9,1,IF('Бланк Методички'!N51='Бланк Методички'!$T$10,2,IF('Бланк Методички'!N51='Бланк Методички'!$T$11,3,IF('Бланк Методички'!N51='Бланк Методички'!$T$12,4,IF('Бланк Методички'!N51='Бланк Методички'!$T$13,5,IF('Бланк Методички'!N51='Бланк Методички'!$T$14,6,IF('Бланк Методички'!N51='Бланк Методички'!$T$15,7,IF('Бланк Методички'!N51='Бланк Методички'!$T$16,8,IF('Бланк Методички'!N51='Бланк Методички'!$T$17,9,IF('Бланк Методички'!N51='Бланк Методички'!$T$18,10,))))))))))","v":0},43]
[null,null,null,null,null,null,null,null,null,null,null,{"$f":"IF('Бланк Методички'!N52='Бланк Методички'!$T$9,1,IF('Бланк Методички'!N52='Бланк Методички'!$T$10,2,IF('Бланк Методички'!N52='Бланк Методички'!$T$11,3,IF('Бланк Методички'!N52='Бланк Методички'!$T$12,4,IF('Бланк Методички'!N52='Бланк Методички'!$T$13,5,IF('Бланк Методички'!N52='Бланк Методички'!$T$14,6,IF('Бланк Методички'!N52='Бланк Методички'!$T$15,7,IF('Бланк Методички'!N52='Бланк Методички'!$T$16,8,IF('Бланк Методички'!N52='Бланк Методички'!$T$17,9,IF('Бланк Методички'!N52='Бланк Методички'!$T$18,10,))))))))))","v":0},44]
[null,null,null,null,null,null,null,null,null,null,null,{"$f":"IF('Бланк Методички'!N53='Бланк Методички'!$T$9,1,IF('Бланк Методички'!N53='Бланк Методички'!$T$10,2,IF('Бланк Методички'!N53='Бланк Методички'!$T$11,3,IF('Бланк Методички'!N53='Бланк Методички'!$T$12,4,IF('Бланк Методички'!N53='Бланк Методички'!$T$13,5,IF('Бланк Методички'!N53='Бланк Методички'!$T$14,6,IF('Бланк Методички'!N53='Бланк Методички'!$T$15,7,IF('Бланк Методички'!N53='Бланк Методички'!$T$16,8,IF('Бланк Методички'!N53='Бланк Методички'!$T$17,9,IF('Бланк Методички'!N53='Бланк Методички'!$T$18,10,))))))))))","v":0},45]
[null,null,null,null,null,null,null,null,null,null,null,{"$f":"IF('Бланк Методички'!N54='Бланк Методички'!$T$9,1,IF('Бланк Методички'!N54='Бланк Методички'!$T$10,2,IF('Бланк Методички'!N54='Бланк Методички'!$T$11,3,IF('Бланк Методички'!N54='Бланк Методички'!$T$12,4,IF('Бланк Методички'!N54='Бланк Методички'!$T$13,5,IF('Бланк Методички'!N54='Бланк Методички'!$T$14,6,IF('Бланк Методички'!N54='Бланк Методички'!$T$15,7,IF('Бланк Методички'!N54='Бланк Методички'!$T$16,8,IF('Бланк Методички'!N54='Бланк Методички'!$T$17,9,IF('Бланк Методички'!N54='Бланк Методички'!$T$18,10,))))))))))","v":0},46]
[null,null,null,null,null,null,null,null,null,null,null,{"$f":"IF('Бланк Методички'!N55='Бланк Методички'!$T$9,1,IF('Бланк Методички'!N55='Бланк Методички'!$T$10,2,IF('Бланк Методички'!N55='Бланк Методички'!$T$11,3,IF('Бланк Методички'!N55='Бланк Методички'!$T$12,4,IF('Бланк Методички'!N55='Бланк Методички'!$T$13,5,IF('Бланк Методички'!N55='Бланк Методички'!$T$14,6,IF('Бланк Методички'!N55='Бланк Методички'!$T$15,7,IF('Бланк Методички'!N55='Бланк Методички'!$T$16,8,IF('Бланк Методички'!N55='Бланк Методички'!$T$17,9,IF('Бланк Методички'!N55='Бланк Методички'!$T$18,10,))))))))))","v":0},47]
[null,null,null,null,null,null,null,null,null,null,null,{"$f":"IF('Бланк Методички'!N56='Бланк Методички'!$T$9,1,IF('Бланк Методички'!N56='Бланк Методички'!$T$10,2,IF('Бланк Методички'!N56='Бланк Методички'!$T$11,3,IF('Бланк Методички'!N56='Бланк Методички'!$T$12,4,IF('Бланк Методички'!N56='Бланк Методички'!$T$13,5,IF('Бланк Методички'!N56='Бланк Методички'!$T$14,6,IF('Бланк Методички'!N56='Бланк Методички'!$T$15,7,IF('Бланк Методички'!N56='Бланк Методички'!$T$16,8,IF('Бланк Методички'!N56='Бланк Методички'!$T$17,9,IF('Бланк Методички'!N56='Бланк Методички'!$T$18,10,))))))))))","v":0},48]
[null,null,null,null,null,null,null,null,null,null,null,{"$f":"IF('Бланк Методички'!N57='Бланк Методички'!$T$9,1,IF('Бланк Методички'!N57='Бланк Методички'!$T$10,2,IF('Бланк Методички'!N57='Бланк Методички'!$T$11,3,IF('Бланк Методички'!N57='Бланк Методички'!$T$12,4,IF('Бланк Методички'!N57='Бланк Методички'!$T$13,5,IF('Бланк Методички'!N57='Бланк Методички'!$T$14,6,IF('Бланк Методички'!N57='Бланк Методички'!$T$15,7,IF('Бланк Методички'!N57='Бланк Методички'!$T$16,8,IF('Бланк Методички'!N57='Бланк Методички'!$T$17,9,IF('Бланк Методички'!N57='Бланк Методички'!$T$18,10,))))))))))","v":0},49]
[null,null,null,null,null,null,null,null,null,null,null,{"$f":"IF('Бланк Методички'!N58='Бланк Методички'!$T$9,1,IF('Бланк Методички'!N58='Бланк Методички'!$T$10,2,IF('Бланк Методички'!N58='Бланк Методички'!$T$11,3,IF('Бланк Методички'!N58='Бланк Методички'!$T$12,4,IF('Бланк Методички'!N58='Бланк Методички'!$T$13,5,IF('Бланк Методички'!N58='Бланк Методички'!$T$14,6,IF('Бланк Методички'!N58='Бланк Методички'!$T$15,7,IF('Бланк Методички'!N58='Бланк Методички'!$T$16,8,IF('Бланк Методички'!N58='Бланк Методички'!$T$17,9,IF('Бланк Методички'!N58='Бланк Методички'!$T$18,10,))))))))))","v":0},50]
[null,null,null,null,null,null,null,null,null,null,null,{"$f":"IF('Бланк Методички'!N59='Бланк Методички'!$T$9,1,IF('Бланк Методички'!N59='Бланк Методички'!$T$10,2,IF('Бланк Методички'!N59='Бланк Методички'!$T$11,3,IF('Бланк Методички'!N59='Бланк Методички'!$T$12,4,IF('Бланк Методички'!N59='Бланк Методички'!$T$13,5,IF('Бланк Методички'!N59='Бланк Методички'!$T$14,6,IF('Бланк Методички'!N59='Бланк Методички'!$T$15,7,IF('Бланк Методички'!N59='Бланк Методички'!$T$16,8,IF('Бланк Методички'!N59='Бланк Методички'!$T$17,9,IF('Бланк Методички'!N59='Бланк Методички'!$T$18,10,))))))))))","v":0},51]
[null,null,null,null,null,null,null,null,null,null,null,{"$f":"IF('Бланк Методички'!N60='Бланк Методички'!$T$9,1,IF('Бланк Методички'!N60='Бланк Методички'!$T$10,2,IF('Бланк Методички'!N60='Бланк Методички'!$T$11,3,IF('Бланк Методички'!N60='Бланк Методички'!$T$12,4,IF('Бланк Методички'!N60='Бланк Методички'!$T$13,5,IF('Бланк Методички'!N60='Бланк Методички'!$T$14,6,IF('Бланк Методички'!N60='Бланк Методички'!$T$15,7,IF('Бланк Методички'!N60='Бланк Методички'!$T$16,8,IF('Бланк Методички'!N60='Бланк Методички'!$T$17,9,IF('Бланк Методички'!N60='Бланк Методички'!$T$18,10,))))))))))","v":0},52]
[null,null,null,null,null,null,null,null,null,null,null,{"$f":"IF('Бланк Методички'!N61='Бланк Методички'!$T$9,1,IF('Бланк Методички'!N61='Бланк Методички'!$T$10,2,IF('Бланк Методички'!N61='Бланк Методички'!$T$11,3,IF('Бланк Методички'!N61='Бланк Методички'!$T$12,4,IF('Бланк Методички'!N61='Бланк Методички'!$T$13,5,IF('Бланк Методички'!N61='Бланк Методички'!$T$14,6,IF('Бланк Методички'!N61='Бланк Методички'!$T$15,7,IF('Бланк Методички'!N61='Бланк Методички'!$T$16,8,IF('Бланк Методички'!N61='Бланк Методички'!$T$17,9,IF('Бланк Методички'!N61='Бланк Методички'!$T$18,10,))))))))))","v":0},53]
[null,null,null,null,null,null,null,null,null,null,null,{"$f":"IF('Бланк Методички'!N62='Бланк Методички'!$T$9,1,IF('Бланк Методички'!N62='Бланк Методички'!$T$10,2,IF('Бланк Методички'!N62='Бланк Методички'!$T$11,3,IF('Бланк Методички'!N62='Бланк Методички'!$T$12,4,IF('Бланк Методички'!N62='Бланк Методички'!$T$13,5,IF('Бланк Методички'!N62='Бланк Методички'!$T$14,6,IF('Бланк Методички'!N62='Бланк Методички'!$T$15,7,IF('Бланк Методички'!N62='Бланк Методички'!$T$16,8,IF('Бланк Методички'!N62='Бланк Методички'!$T$17,9,IF('Бланк Методички'!N62='Бланк Методички'!$T$18,10,))))))))))","v":0},54]
[null,null,null,null,null,null,null,null,null,null,null,{"$f":"IF('Бланк Методички'!N63='Бланк Методички'!$T$9,1,IF('Бланк Методички'!N63='Бланк Методички'!$T$10,2,IF('Бланк Методички'!N63='Бланк Методички'!$T$11,3,IF('Бланк Методички'!N63='Бланк Методички'!$T$12,4,IF('Бланк Методички'!N63='Бланк Методички'!$T$13,5,IF('Бланк Методички'!N63='Бланк Методички'!$T$14,6,IF('Бланк Методички'!N63='Бланк Методички'!$T$15,7,IF('Бланк Методички'!N63='Бланк Методички'!$T$16,8,IF('Бланк Методички'!N63='Бланк Методички'!$T$17,9,IF('Бланк Методички'!N63='Бланк Методички'!$T$18,10,))))))))))","v":0},55]
[null,null,null,null,null,null,null,null,null,null,null,{"$f":"IF('Бланк Методички'!N64='Бланк Методички'!$T$9,1,IF('Бланк Методички'!N64='Бланк Методички'!$T$10,2,IF('Бланк Методички'!N64='Бланк Методички'!$T$11,3,IF('Бланк Методички'!N64='Бланк Методички'!$T$12,4,IF('Бланк Методички'!N64='Бланк Методички'!$T$13,5,IF('Бланк Методички'!N64='Бланк Методички'!$T$14,6,IF('Бланк Методички'!N64='Бланк Методички'!$T$15,7,IF('Бланк Методички'!N64='Бланк Методички'!$T$16,8,IF('Бланк Методички'!N64='Бланк Методички'!$T$17,9,IF('Бланк Методички'!N64='Бланк Методички'!$T$18,10,))))))))))","v":0},56]
[null,null,null,null,null,null,null,null,null,null,null,{"$f":"IF('Бланк Методички'!N65='Бланк Методички'!$T$9,1,IF('Бланк Методички'!N65='Бланк Методички'!$T$10,2,IF('Бланк Методички'!N65='Бланк Методички'!$T$11,3,IF('Бланк Методички'!N65='Бланк Методички'!$T$12,4,IF('Бланк Методички'!N65='Бланк Методички'!$T$13,5,IF('Бланк Методички'!N65='Бланк Методички'!$T$14,6,IF('Бланк Методички'!N65='Бланк Методички'!$T$15,7,IF('Бланк Методички'!N65='Бланк Методички'!$T$16,8,IF('Бланк Методички'!N65='Бланк Методички'!$T$17,9,IF('Бланк Методички'!N65='Бланк Методички'!$T$18,10,))))))))))","v":0},57]
[null,null,null,null,null,null,null,null,null,null,null,{"$f":"IF('Бланк Методички'!N66='Бланк Методички'!$T$9,1,IF('Бланк Методички'!N66='Бланк Методички'!$T$10,2,IF('Бланк Методички'!N66='Бланк Методички'!$T$11,3,IF('Бланк Методички'!N66='Бланк Методички'!$T$12,4,IF('Бланк Методички'!N66='Бланк Методички'!$T$13,5,IF('Бланк Методички'!N66='Бланк Методички'!$T$14,6,IF('Бланк Методички'!N66='Бланк Методички'!$T$15,7,IF('Бланк Методички'!N66='Бланк Методички'!$T$16,8,IF('Бланк Методички'!N66='Бланк Методички'!$T$17,9,IF('Бланк Методички'!N66='Бланк Методички'!$T$18,10,))))))))))","v":0},58]
[null,null,null,null,null,null,null,null,null,null,null,{"$f":"IF('Бланк Методички'!N67='Бланк Методички'!$T$9,1,IF('Бланк Методички'!N67='Бланк Методички'!$T$10,2,IF('Бланк Методички'!N67='Бланк Методички'!$T$11,3,IF('Бланк Методички'!N67='Бланк Методички'!$T$12,4,IF('Бланк Методички'!N67='Бланк Методички'!$T$13,5,IF('Бланк Методички'!N67='Бланк Методички'!$T$14,6,IF('Бланк Методички'!N67='Бланк Методички'!$T$15,7,IF('Бланк Методички'!N67='Бланк Методички'!$T$16,8,IF('Бланк Методички'!N67='Бланк Методички'!$T$17,9,IF('Бланк Методички'!N67='Бланк Методички'!$T$18,10,))))))))))","v":0},59]
[null,null,null,null,null,null,null,null,null,null,null,{"$f":"IF('Бланк Методички'!N68='Бланк Методички'!$T$9,1,IF('Бланк Методички'!N68='Бланк Методички'!$T$10,2,IF('Бланк Методички'!N68='Бланк Методички'!$T$11,3,IF('Бланк Методички'!N68='Бланк Методички'!$T$12,4,IF('Бланк Методички'!N68='Бланк Методички'!$T$13,5,IF('Бланк Методички'!N68='Бланк Методички'!$T$14,6,IF('Бланк Методички'!N68='Бланк Методички'!$T$15,7,IF('Бланк Методички'!N68='Бланк Методички'!$T$16,8,IF('Бланк Методички'!N68='Бланк Методички'!$T$17,9,IF('Бланк Методички'!N68='Бланк Методички'!$T$18,10,))))))))))","v":0},60]
[null,null,null,null,null,null,null,null,null,null,null,{"$f":"IF('Бланк Методички'!N69='Бланк Методички'!$T$9,1,IF('Бланк Методички'!N69='Бланк Методички'!$T$10,2,IF('Бланк Методички'!N69='Бланк Методички'!$T$11,3,IF('Бланк Методички'!N69='Бланк Методички'!$T$12,4,IF('Бланк Методички'!N69='Бланк Методички'!$T$13,5,IF('Бланк Методички'!N69='Бланк Методички'!$T$14,6,IF('Бланк Методички'!N69='Бланк Методички'!$T$15,7,IF('Бланк Методички'!N69='Бланк Методички'!$T$16,8,IF('Бланк Методички'!N69='Бланк Методички'!$T$17,9,IF('Бланк Методички'!N69='Бланк Методички'!$T$18,10,))))))))))","v":0},61]
[null,null,null,null,null,null,null,null,null,null,null,{"$f":"IF('Бланк Методички'!N70='Бланк Методички'!$T$9,1,IF('Бланк Методички'!N70='Бланк Методички'!$T$10,2,IF('Бланк Методички'!N70='Бланк Методички'!$T$11,3,IF('Бланк Методички'!N70='Бланк Методички'!$T$12,4,IF('Бланк Методички'!N70='Бланк Методички'!$T$13,5,IF('Бланк Методички'!N70='Бланк Методички'!$T$14,6,IF('Бланк Методички'!N70='Бланк Методички'!$T$15,7,IF('Бланк Методички'!N70='Бланк Методички'!$T$16,8,IF('Бланк Методички'!N70='Бланк Методички'!$T$17,9,IF('Бланк Методички'!N70='Бланк Методички'!$T$18,10,))))))))))","v":0},62]
[null,null,null,null,null,null,null,null,null,null,null,{"$f":"IF('Бланк Методички'!N71='Бланк Методички'!$T$9,1,IF('Бланк Методички'!N71='Бланк Методички'!$T$10,2,IF('Бланк Методички'!N71='Бланк Методички'!$T$11,3,IF('Бланк Методички'!N71='Бланк Методички'!$T$12,4,IF('Бланк Методички'!N71='Бланк Методички'!$T$13,5,IF('Бланк Методички'!N71='Бланк Методички'!$T$14,6,IF('Бланк Методички'!N71='Бланк Методички'!$T$15,7,IF('Бланк Методички'!N71='Бланк Методички'!$T$16,8,IF('Бланк Методички'!N71='Бланк Методички'!$T$17,9,IF('Бланк Методички'!N71='Бланк Методички'!$T$18,10,))))))))))","v":0},63]
[null,null,null,null,null,null,null,null,null,null,null,{"$f":"IF('Бланк Методички'!N72='Бланк Методички'!$T$9,1,IF('Бланк Методички'!N72='Бланк Методички'!$T$10,2,IF('Бланк Методички'!N72='Бланк Методички'!$T$11,3,IF('Бланк Методички'!N72='Бланк Методички'!$T$12,4,IF('Бланк Методички'!N72='Бланк Методички'!$T$13,5,IF('Бланк Методички'!N72='Бланк Методички'!$T$14,6,IF('Бланк Методички'!N72='Бланк Методички'!$T$15,7,IF('Бланк Методички'!N72='Бланк Методички'!$T$16,8,IF('Бланк Методички'!N72='Бланк Методички'!$T$17,9,IF('Бланк Методички'!N72='Бланк Методички'!$T$18,10,))))))))))","v":0},64]
[null,null,null,null,null,null,null,null,null,null,null,{"$f":"IF('Бланк Методички'!N73='Бланк Методички'!$T$9,1,IF('Бланк Методички'!N73='Бланк Методички'!$T$10,2,IF('Бланк Методички'!N73='Бланк Методички'!$T$11,3,IF('Бланк Методички'!N73='Бланк Методички'!$T$12,4,IF('Бланк Методички'!N73='Бланк Методички'!$T$13,5,IF('Бланк Методички'!N73='Бланк Методички'!$T$14,6,IF('Бланк Методички'!N73='Бланк Методички'!$T$15,7,IF('Бланк Методички'!N73='Бланк Методички'!$T$16,8,IF('Бланк Методички'!N73='Бланк Методички'!$T$17,9,IF('Бланк Методички'!N73='Бланк Методички'!$T$18,10,))))))))))","v":0},65]
[null,null,null,null,null,null,null,null,null,null,null,{"$f":"IF('Бланк Методички'!N74='Бланк Методички'!$T$9,1,IF('Бланк Методички'!N74='Бланк Методички'!$T$10,2,IF('Бланк Методички'!N74='Бланк Методички'!$T$11,3,IF('Бланк Методички'!N74='Бланк Методички'!$T$12,4,IF('Бланк Методички'!N74='Бланк Методички'!$T$13,5,IF('Бланк Методички'!N74='Бланк Методички'!$T$14,6,IF('Бланк Методички'!N74='Бланк Методички'!$T$15,7,IF('Бланк Методички'!N74='Бланк Методички'!$T$16,8,IF('Бланк Методички'!N74='Бланк Методички'!$T$17,9,IF('Бланк Методички'!N74='Бланк Методички'!$T$18,10,))))))))))","v":0},66]
[null,null,null,null,null,null,null,null,null,null,null,{"$f":"IF('Бланк Методички'!N75='Бланк Методички'!$T$9,1,IF('Бланк Методички'!N75='Бланк Методички'!$T$10,2,IF('Бланк Методички'!N75='Бланк Методички'!$T$11,3,IF('Бланк Методички'!N75='Бланк Методички'!$T$12,4,IF('Бланк Методички'!N75='Бланк Методички'!$T$13,5,IF('Бланк Методички'!N75='Бланк Методички'!$T$14,6,IF('Бланк Методички'!N75='Бланк Методички'!$T$15,7,IF('Бланк Методички'!N75='Бланк Методички'!$T$16,8,IF('Бланк Методички'!N75='Бланк Методички'!$T$17,9,IF('Бланк Методички'!N75='Бланк Методички'!$T$18,10,))))))))))","v":0},67]
[null,null,null,null,null,null,null,null,null,null,null,{"$f":"IF('Бланк Методички'!N76='Бланк Методички'!$T$9,1,IF('Бланк Методички'!N76='Бланк Методички'!$T$10,2,IF('Бланк Методички'!N76='Бланк Методички'!$T$11,3,IF('Бланк Методички'!N76='Бланк Методички'!$T$12,4,IF('Бланк Методички'!N76='Бланк Методички'!$T$13,5,IF('Бланк Методички'!N76='Бланк Методички'!$T$14,6,IF('Бланк Методички'!N76='Бланк Методички'!$T$15,7,IF('Бланк Методички'!N76='Бланк Методички'!$T$16,8,IF('Бланк Методички'!N76='Бланк Методички'!$T$17,9,IF('Бланк Методички'!N76='Бланк Методички'!$T$18,10,))))))))))","v":0},68]
[null,null,null,null,null,null,null,null,null,null,null,{"$f":"IF('Бланк Методички'!N77='Бланк Методички'!$T$9,1,IF('Бланк Методички'!N77='Бланк Методички'!$T$10,2,IF('Бланк Методички'!N77='Бланк Методички'!$T$11,3,IF('Бланк Методички'!N77='Бланк Методички'!$T$12,4,IF('Бланк Методички'!N77='Бланк Методички'!$T$13,5,IF('Бланк Методички'!N77='Бланк Методички'!$T$14,6,IF('Бланк Методички'!N77='Бланк Методички'!$T$15,7,IF('Бланк Методички'!N77='Бланк Методички'!$T$16,8,IF('Бланк Методички'!N77='Бланк Методички'!$T$17,9,IF('Бланк Методички'!N77='Бланк Методички'!$T$18,10,))))))))))","v":0},69]
[null,null,null,null,null,null,null,null,null,null,null,{"$f":"IF('Бланк Методички'!N78='Бланк Методички'!$T$9,1,IF('Бланк Методички'!N78='Бланк Методички'!$T$10,2,IF('Бланк Методички'!N78='Бланк Методички'!$T$11,3,IF('Бланк Методички'!N78='Бланк Методички'!$T$12,4,IF('Бланк Методички'!N78='Бланк Методички'!$T$13,5,IF('Бланк Методички'!N78='Бланк Методички'!$T$14,6,IF('Бланк Методички'!N78='Бланк Методички'!$T$15,7,IF('Бланк Методички'!N78='Бланк Методички'!$T$16,8,IF('Бланк Методички'!N78='Бланк Методички'!$T$17,9,IF('Бланк Методички'!N78='Бланк Методички'!$T$18,10,))))))))))","v":0},70]
[null,null,null,null,null,null,null,null,null,null,null,{"$f":"IF('Бланк Методички'!N79='Бланк Методички'!$T$9,1,IF('Бланк Методички'!N79='Бланк Методички'!$T$10,2,IF('Бланк Методички'!N79='Бланк Методички'!$T$11,3,IF('Бланк Методички'!N79='Бланк Методички'!$T$12,4,IF('Бланк Методички'!N79='Бланк Методички'!$T$13,5,IF('Бланк Методички'!N79='Бланк Методички'!$T$14,6,IF('Бланк Методички'!N79='Бланк Методички'!$T$15,7,IF('Бланк Методички'!N79='Бланк Методички'!$T$16,8,IF('Бланк Методички'!N79='Бланк Методички'!$T$17,9,IF('Бланк Методички'!N79='Бланк Методички'!$T$18,10,))))))))))","v":0},71]
[null,null,null,null,null,null,null,null,null,null,null,{"$f":"IF('Бланк Методички'!N80='Бланк Методички'!$T$9,1,IF('Бланк Методички'!N80='Бланк Методички'!$T$10,2,IF('Бланк Методички'!N80='Бланк Методички'!$T$11,3,IF('Бланк Методички'!N80='Бланк Методички'!$T$12,4,IF('Бланк Методички'!N80='Бланк Методички'!$T$13,5,IF('Бланк Методички'!N80='Бланк Методички'!$T$14,6,IF('Бланк Методички'!N80='Бланк Методички'!$T$15,7,IF('Бланк Методички'!N80='Бланк Методички'!$T$16,8,IF('Бланк Методички'!N80='Бланк Методички'!$T$17,9,IF('Бланк Методички'!N80='Бланк Методички'!$T$18,10,))))))))))","v":0},72]
[null,null,null,null,null,null,null,null,null,null,null,{"$f":"IF('Бланк Методички'!N81='Бланк Методички'!$T$9,1,IF('Бланк Методички'!N81='Бланк Методички'!$T$10,2,IF('Бланк Методички'!N81='Бланк Методички'!$T$11,3,IF('Бланк Методички'!N81='Бланк Методички'!$T$12,4,IF('Бланк Методички'!N81='Бланк Методички'!$T$13,5,IF('Бланк Методички'!N81='Бланк Методички'!$T$14,6,IF('Бланк Методички'!N81='Бланк Методички'!$T$15,7,IF('Бланк Методички'!N81='Бланк Методички'!$T$16,8,IF('Бланк Методички'!N81='Бланк Методички'!$T$17,9,IF('Бланк Методички'!N81='Бланк Методички'!$T$18,10,))))))))))","v":0},73]
[null,null,null,null,null,null,null,null,null,null,null,{"$f":"IF('Бланк Методички'!N82='Бланк Методички'!$T$9,1,IF('Бланк Методички'!N82='Бланк Методички'!$T$10,2,IF('Бланк Методички'!N82='Бланк Методички'!$T$11,3,IF('Бланк Методички'!N82='Бланк Методички'!$T$12,4,IF('Бланк Методички'!N82='Бланк Методички'!$T$13,5,IF('Бланк Методички'!N82='Бланк Методички'!$T$14,6,IF('Бланк Методички'!N82='Бланк Методички'!$T$15,7,IF('Бланк Методички'!N82='Бланк Методички'!$T$16,8,IF('Бланк Методички'!N82='Бланк Методички'!$T$17,9,IF('Бланк Методички'!N82='Бланк Методички'!$T$18,10,))))))))))","v":0},74]
[null,null,null,null,null,null,null,null,null,null,null,{"$f":"IF('Бланк Методички'!N83='Бланк Методички'!$T$9,1,IF('Бланк Методички'!N83='Бланк Методички'!$T$10,2,IF('Бланк Методички'!N83='Бланк Методички'!$T$11,3,IF('Бланк Методички'!N83='Бланк Методички'!$T$12,4,IF('Бланк Методички'!N83='Бланк Методички'!$T$13,5,IF('Бланк Методички'!N83='Бланк Методички'!$T$14,6,IF('Бланк Методички'!N83='Бланк Методички'!$T$15,7,IF('Бланк Методички'!N83='Бланк Методички'!$T$16,8,IF('Бланк Методички'!N83='Бланк Методички'!$T$17,9,IF('Бланк Методички'!N83='Бланк Методички'!$T$18,10,))))))))))","v":0},75]
[null,null,null,null,null,null,null,null,null,null,null,{"$f":"IF('Бланк Методички'!N84='Бланк Методички'!$T$9,1,IF('Бланк Методички'!N84='Бланк Методички'!$T$10,2,IF('Бланк Методички'!N84='Бланк Методички'!$T$11,3,IF('Бланк Методички'!N84='Бланк Методички'!$T$12,4,IF('Бланк Методички'!N84='Бланк Методички'!$T$13,5,IF('Бланк Методички'!N84='Бланк Методички'!$T$14,6,IF('Бланк Методички'!N84='Бланк Методички'!$T$15,7,IF('Бланк Методички'!N84='Бланк Методички'!$T$16,8,IF('Бланк Методички'!N84='Бланк Методички'!$T$17,9,IF('Бланк Методички'!N84='Бланк Методички'!$T$18,10,))))))))))","v":0},76]
[null,null,null,null,null,null,null,null,null,null,null,{"$f":"IF('Бланк Методички'!N85='Бланк Методички'!$T$9,1,IF('Бланк Методички'!N85='Бланк Методички'!$T$10,2,IF('Бланк Методички'!N85='Бланк Методички'!$T$11,3,IF('Бланк Методички'!N85='Бланк Методички'!$T$12,4,IF('Бланк Методички'!N85='Бланк Методички'!$T$13,5,IF('Бланк Методички'!N85='Бланк Методички'!$T$14,6,IF('Бланк Методички'!N85='Бланк Методички'!$T$15,7,IF('Бланк Методички'!N85='Бланк Методички'!$T$16,8,IF('Бланк Методички'!N85='Бланк Методички'!$T$17,9,IF('Бланк Методички'!N85='Бланк Методички'!$T$18,10,))))))))))","v":0},77]
[null,null,null,null,null,null,null,null,null,null,null,{"$f":"IF('Бланк Методички'!N86='Бланк Методички'!$T$9,1,IF('Бланк Методички'!N86='Бланк Методички'!$T$10,2,IF('Бланк Методички'!N86='Бланк Методички'!$T$11,3,IF('Бланк Методички'!N86='Бланк Методички'!$T$12,4,IF('Бланк Методички'!N86='Бланк Методички'!$T$13,5,IF('Бланк Методички'!N86='Бланк Методички'!$T$14,6,IF('Бланк Методички'!N86='Бланк Методички'!$T$15,7,IF('Бланк Методички'!N86='Бланк Методички'!$T$16,8,IF('Бланк Методички'!N86='Бланк Методички'!$T$17,9,IF('Бланк Методички'!N86='Бланк Методички'!$T$18,10,))))))))))","v":0},78]
[null,null,null,null,null,null,null,null,null,null,null,{"$f":"IF('Бланк Методички'!N87='Бланк Методички'!$T$9,1,IF('Бланк Методички'!N87='Бланк Методички'!$T$10,2,IF('Бланк Методички'!N87='Бланк Методички'!$T$11,3,IF('Бланк Методички'!N87='Бланк Методички'!$T$12,4,IF('Бланк Методички'!N87='Бланк Методички'!$T$13,5,IF('Бланк Методички'!N87='Бланк Методички'!$T$14,6,IF('Бланк Методички'!N87='Бланк Методички'!$T$15,7,IF('Бланк Методички'!N87='Бланк Методички'!$T$16,8,IF('Бланк Методички'!N87='Бланк Методички'!$T$17,9,IF('Бланк Методички'!N87='Бланк Методички'!$T$18,10,))))))))))","v":0},79]
[null,null,null,null,null,null,null,null,null,null,null,{"$f":"IF('Бланк Методички'!N88='Бланк Методички'!$T$9,1,IF('Бланк Методички'!N88='Бланк Методички'!$T$10,2,IF('Бланк Методички'!N88='Бланк Методички'!$T$11,3,IF('Бланк Методички'!N88='Бланк Методички'!$T$12,4,IF('Бланк Методички'!N88='Бланк Методички'!$T$13,5,IF('Бланк Методички'!N88='Бланк Методички'!$T$14,6,IF('Бланк Методички'!N88='Бланк Методички'!$T$15,7,IF('Бланк Методички'!N88='Бланк Методички'!$T$16,8,IF('Бланк Методички'!N88='Бланк Методички'!$T$17,9,IF('Бланк Методички'!N88='Бланк Методички'!$T$18,10,))))))))))","v":0},80]
[null,null,null,null,null,null,null,null,null,null,null,{"$f":"IF('Бланк Методички'!N89='Бланк Методички'!$T$9,1,IF('Бланк Методички'!N89='Бланк Методички'!$T$10,2,IF('Бланк Методички'!N89='Бланк Методички'!$T$11,3,IF('Бланк Методички'!N89='Бланк Методички'!$T$12,4,IF('Бланк Методички'!N89='Бланк Методички'!$T$13,5,IF('Бланк Методички'!N89='Бланк Методички'!$T$14,6,IF('Бланк Методички'!N89='Бланк Методички'!$T$15,7,IF('Бланк Методички'!N89='Бланк Методички'!$T$16,8,IF('Бланк Методички'!N89='Бланк Методички'!$T$17,9,IF('Бланк Методички'!N89='Бланк Методички'!$T$18,10,))))))))))","v":0},81]
[null,null,null,null,null,null,null,null,null,null,null,{"$f":"IF('Бланк Методички'!N90='Бланк Методички'!$T$9,1,IF('Бланк Методички'!N90='Бланк Методички'!$T$10,2,IF('Бланк Методички'!N90='Бланк Методички'!$T$11,3,IF('Бланк Методички'!N90='Бланк Методички'!$T$12,4,IF('Бланк Методички'!N90='Бланк Методички'!$T$13,5,IF('Бланк Методички'!N90='Бланк Методички'!$T$14,6,IF('Бланк Методички'!N90='Бланк Методички'!$T$15,7,IF('Бланк Методички'!N90='Бланк Методички'!$T$16,8,IF('Бланк Методички'!N90='Бланк Методички'!$T$17,9,IF('Бланк Методички'!N90='Бланк Методички'!$T$18,10,))))))))))","v":0},82]
[null,null,null,null,null,null,null,null,null,null,null,{"$f":"IF('Бланк Методички'!N91='Бланк Методички'!$T$9,1,IF('Бланк Методички'!N91='Бланк Методички'!$T$10,2,IF('Бланк Методички'!N91='Бланк Методички'!$T$11,3,IF('Бланк Методички'!N91='Бланк Методички'!$T$12,4,IF('Бланк Методички'!N91='Бланк Методички'!$T$13,5,IF('Бланк Методички'!N91='Бланк Методички'!$T$14,6,IF('Бланк Методички'!N91='Бланк Методички'!$T$15,7,IF('Бланк Методички'!N91='Бланк Методички'!$T$16,8,IF('Бланк Методички'!N91='Бланк Методички'!$T$17,9,IF('Бланк Методички'!N91='Бланк Методички'!$T$18,10,))))))))))","v":0},83]
[null,null,null,null,null,null,null,null,null,null,null,{"$f":"IF('Бланк Методички'!N92='Бланк Методички'!$T$9,1,IF('Бланк Методички'!N92='Бланк Методички'!$T$10,2,IF('Бланк Методички'!N92='Бланк Методички'!$T$11,3,IF('Бланк Методички'!N92='Бланк Методички'!$T$12,4,IF('Бланк Методички'!N92='Бланк Методички'!$T$13,5,IF('Бланк Методички'!N92='Бланк Методички'!$T$14,6,IF('Бланк Методички'!N92='Бланк Методички'!$T$15,7,IF('Бланк Методички'!N92='Бланк Методички'!$T$16,8,IF('Бланк Методички'!N92='Бланк Методички'!$T$17,9,IF('Бланк Методички'!N92='Бланк Методички'!$T$18,10,))))))))))","v":0},84]
[null,null,null,null,null,null,null,null,null,null,null,{"$f":"IF('Бланк Методички'!N93='Бланк Методички'!$T$9,1,IF('Бланк Методички'!N93='Бланк Методички'!$T$10,2,IF('Бланк Методички'!N93='Бланк Методички'!$T$11,3,IF('Бланк Методички'!N93='Бланк Методички'!$T$12,4,IF('Бланк Методички'!N93='Бланк Методички'!$T$13,5,IF('Бланк Методички'!N93='Бланк Методички'!$T$14,6,IF('Бланк Методички'!N93='Бланк Методички'!$T$15,7,IF('Бланк Методички'!N93='Бланк Методички'!$T$16,8,IF('Бланк Методички'!N93='Бланк Методички'!$T$17,9,IF('Бланк Методички'!N93='Бланк Методички'!$T$18,10,))))))))))","v":0},85]
[null,null,null,null,null,null,null,null,null,null,null,{"$f":"IF('Бланк Методички'!N94='Бланк Методички'!$T$9,1,IF('Бланк Методички'!N94='Бланк Методички'!$T$10,2,IF('Бланк Методички'!N94='Бланк Методички'!$T$11,3,IF('Бланк Методички'!N94='Бланк Методички'!$T$12,4,IF('Бланк Методички'!N94='Бланк Методички'!$T$13,5,IF('Бланк Методички'!N94='Бланк Методички'!$T$14,6,IF('Бланк Методички'!N94='Бланк Методички'!$T$15,7,IF('Бланк Методички'!N94='Бланк Методички'!$T$16,8,IF('Бланк Методички'!N94='Бланк Методички'!$T$17,9,IF('Бланк Методички'!N94='Бланк Методички'!$T$18,10,))))))))))","v":0},86]
[null,null,null,null,null,null,null,null,null,null,null,{"$f":"IF('Бланк Методички'!N95='Бланк Методички'!$T$9,1,IF('Бланк Методички'!N95='Бланк Методички'!$T$10,2,IF('Бланк Методички'!N95='Бланк Методички'!$T$11,3,IF('Бланк Методички'!N95='Бланк Методички'!$T$12,4,IF('Бланк Методички'!N95='Бланк Методички'!$T$13,5,IF('Бланк Методички'!N95='Бланк Методички'!$T$14,6,IF('Бланк Методички'!N95='Бланк Методички'!$T$15,7,IF('Бланк Методички'!N95='Бланк Методички'!$T$16,8,IF('Бланк Методички'!N95='Бланк Методички'!$T$17,9,IF('Бланк Методички'!N95='Бланк Методички'!$T$18,10,))))))))))","v":0},87]
[null,null,null,null,null,null,null,null,null,null,null,{"$f":"IF('Бланк Методички'!N96='Бланк Методички'!$T$9,1,IF('Бланк Методички'!N96='Бланк Методички'!$T$10,2,IF('Бланк Методички'!N96='Бланк Методички'!$T$11,3,IF('Бланк Методички'!N96='Бланк Методички'!$T$12,4,IF('Бланк Методички'!N96='Бланк Методички'!$T$13,5,IF('Бланк Методички'!N96='Бланк Методички'!$T$14,6,IF('Бланк Методички'!N96='Бланк Методички'!$T$15,7,IF('Бланк Методички'!N96='Бланк Методички'!$T$16,8,IF('Бланк Методички'!N96='Бланк Методички'!$T$17,9,IF('Бланк Методички'!N96='Бланк Методички'!$T$18,10,))))))))))","v":0},88]
[null,null,null,null,null,null,null,null,null,null,null,{"$f":"IF('Бланк Методички'!N97='Бланк Методички'!$T$9,1,IF('Бланк Методички'!N97='Бланк Методички'!$T$10,2,IF('Бланк Методички'!N97='Бланк Методички'!$T$11,3,IF('Бланк Методички'!N97='Бланк Методички'!$T$12,4,IF('Бланк Методички'!N97='Бланк Методички'!$T$13,5,IF('Бланк Методички'!N97='Бланк Методички'!$T$14,6,IF('Бланк Методички'!N97='Бланк Методички'!$T$15,7,IF('Бланк Методички'!N97='Бланк Методички'!$T$16,8,IF('Бланк Методички'!N97='Бланк Методички'!$T$17,9,IF('Бланк Методички'!N97='Бланк Методички'!$T$18,10,))))))))))","v":0},89]
[null,null,null,null,null,null,null,null,null,null,null,{"$f":"IF('Бланк Методички'!N98='Бланк Методички'!$T$9,1,IF('Бланк Методички'!N98='Бланк Методички'!$T$10,2,IF('Бланк Методички'!N98='Бланк Методички'!$T$11,3,IF('Бланк Методички'!N98='Бланк Методички'!$T$12,4,IF('Бланк Методички'!N98='Бланк Методички'!$T$13,5,IF('Бланк Методички'!N98='Бланк Методички'!$T$14,6,IF('Бланк Методички'!N98='Бланк Методички'!$T$15,7,IF('Бланк Методички'!N98='Бланк Методички'!$T$16,8,IF('Бланк Методички'!N98='Бланк Методички'!$T$17,9,IF('Бланк Методички'!N98='Бланк Методички'!$T$18,10,))))))))))","v":0},90]
[null,null,null,null,null,null,null,null,null,null,null,{"$f":"IF('Бланк Методички'!N99='Бланк Методички'!$T$9,1,IF('Бланк Методички'!N99='Бланк Методички'!$T$10,2,IF('Бланк Методички'!N99='Бланк Методички'!$T$11,3,IF('Бланк Методички'!N99='Бланк Методички'!$T$12,4,IF('Бланк Методички'!N99='Бланк Методички'!$T$13,5,IF('Бланк Методички'!N99='Бланк Методички'!$T$14,6,IF('Бланк Методички'!N99='Бланк Методички'!$T$15,7,IF('Бланк Методички'!N99='Бланк Методички'!$T$16,8,IF('Бланк Методички'!N99='Бланк Методички'!$T$17,9,IF('Бланк Методички'!N99='Бланк Методички'!$T$18,10,))))))))))","v":0},91]
[null,null,null,null,null,null,null,null,null,null,null,{"$f":"IF('Бланк Методички'!N100='Бланк Методички'!$T$9,1,IF('Бланк Методички'!N100='Бланк Методички'!$T$10,2,IF('Бланк Методички'!N100='Бланк Методички'!$T$11,3,IF('Бланк Методички'!N100='Бланк Методички'!$T$12,4,IF('Бланк Методички'!N100='Бланк Методички'!$T$13,5,IF('Бланк Методички'!N100='Бланк Методички'!$T$14,6,IF('Бланк Методички'!N100='Бланк Методички'!$T$15,7,IF('Бланк Методички'!N100='Бланк Методички'!$T$16,8,IF('Бланк Методички'!N100='Бланк Методички'!$T$17,9,IF('Бланк Методички'!N100='Бланк Методички'!$T$18,10,))))))))))","v":0},92]
[null,null,null,null,null,null,null,null,null,null,null,{"$f":"IF('Бланк Методички'!N101='Бланк Методички'!$T$9,1,IF('Бланк Методички'!N101='Бланк Методички'!$T$10,2,IF('Бланк Методички'!N101='Бланк Методички'!$T$11,3,IF('Бланк Методички'!N101='Бланк Методички'!$T$12,4,IF('Бланк Методички'!N101='Бланк Методички'!$T$13,5,IF('Бланк Методички'!N101='Бланк Методички'!$T$14,6,IF('Бланк Методички'!N101='Бланк Методички'!$T$15,7,IF('Бланк Методички'!N101='Бланк Методички'!$T$16,8,IF('Бланк Методички'!N101='Бланк Методички'!$T$17,9,IF('Бланк Методички'!N101='Бланк Методички'!$T$18,10,))))))))))","v":0},93]
[null,null,null,null,null,null,null,null,null,null,null,{"$f":"IF('Бланк Методички'!N102='Бланк Методички'!$T$9,1,IF('Бланк Методички'!N102='Бланк Методички'!$T$10,2,IF('Бланк Методички'!N102='Бланк Методички'!$T$11,3,IF('Бланк Методички'!N102='Бланк Методички'!$T$12,4,IF('Бланк Методички'!N102='Бланк Методички'!$T$13,5,IF('Бланк Методички'!N102='Бланк Методички'!$T$14,6,IF('Бланк Методички'!N102='Бланк Методички'!$T$15,7,IF('Бланк Методички'!N102='Бланк Методички'!$T$16,8,IF('Бланк Методички'!N102='Бланк Методички'!$T$17,9,IF('Бланк Методички'!N102='Бланк Методички'!$T$18,10,))))))))))","v":0},94]
[null,null,null,null,null,null,null,null,null,null,null,{"$f":"IF('Бланк Методички'!N103='Бланк Методички'!$T$9,1,IF('Бланк Методички'!N103='Бланк Методички'!$T$10,2,IF('Бланк Методички'!N103='Бланк Методички'!$T$11,3,IF('Бланк Методички'!N103='Бланк Методички'!$T$12,4,IF('Бланк Методички'!N103='Бланк Методички'!$T$13,5,IF('Бланк Методички'!N103='Бланк Методички'!$T$14,6,IF('Бланк Методички'!N103='Бланк Методички'!$T$15,7,IF('Бланк Методички'!N103='Бланк Методички'!$T$16,8,IF('Бланк Методички'!N103='Бланк Методички'!$T$17,9,IF('Бланк Методички'!N103='Бланк Методички'!$T$18,10,))))))))))","v":0},95]
[null,null,null,null,null,null,null,null,null,null,null,{"$f":"IF('Бланк Методички'!N104='Бланк Методички'!$T$9,1,IF('Бланк Методички'!N104='Бланк Методички'!$T$10,2,IF('Бланк Методички'!N104='Бланк Методички'!$T$11,3,IF('Бланк Методички'!N104='Бланк Методички'!$T$12,4,IF('Бланк Методички'!N104='Бланк Методички'!$T$13,5,IF('Бланк Методички'!N104='Бланк Методички'!$T$14,6,IF('Бланк Методички'!N104='Бланк Методички'!$T$15,7,IF('Бланк Методички'!N104='Бланк Методички'!$T$16,8,IF('Бланк Методички'!N104='Бланк Методички'!$T$17,9,IF('Бланк Методички'!N104='Бланк Методички'!$T$18,10,))))))))))","v":0},96]
[null,null,null,null,null,null,null,null,null,null,null,{"$f":"IF('Бланк Методички'!N105='Бланк Методички'!$T$9,1,IF('Бланк Методички'!N105='Бланк Методички'!$T$10,2,IF('Бланк Методички'!N105='Бланк Методички'!$T$11,3,IF('Бланк Методички'!N105='Бланк Методички'!$T$12,4,IF('Бланк Методички'!N105='Бланк Методички'!$T$13,5,IF('Бланк Методички'!N105='Бланк Методички'!$T$14,6,IF('Бланк Методички'!N105='Бланк Методички'!$T$15,7,IF('Бланк Методички'!N105='Бланк Методички'!$T$16,8,IF('Бланк Методички'!N105='Бланк Методички'!$T$17,9,IF('Бланк Методички'!N105='Бланк Методички'!$T$18,10,))))))))))","v":0},97]
[null,null,null,null,null,null,null,null,null,null,null,{"$f":"IF('Бланк Методички'!N106='Бланк Методички'!$T$9,1,IF('Бланк Методички'!N106='Бланк Методички'!$T$10,2,IF('Бланк Методички'!N106='Бланк Методички'!$T$11,3,IF('Бланк Методички'!N106='Бланк Методички'!$T$12,4,IF('Бланк Методички'!N106='Бланк Методички'!$T$13,5,IF('Бланк Методички'!N106='Бланк Методички'!$T$14,6,IF('Бланк Методички'!N106='Бланк Методички'!$T$15,7,IF('Бланк Методички'!N106='Бланк Методички'!$T$16,8,IF('Бланк Методички'!N106='Бланк Методички'!$T$17,9,IF('Бланк Методички'!N106='Бланк Методички'!$T$18,10,))))))))))","v":0},98]
[null,null,null,null,null,null,null,null,null,null,null,{"$f":"IF('Бланк Методички'!N107='Бланк Методички'!$T$9,1,IF('Бланк Методички'!N107='Бланк Методички'!$T$10,2,IF('Бланк Методички'!N107='Бланк Методички'!$T$11,3,IF('Бланк Методички'!N107='Бланк Методички'!$T$12,4,IF('Бланк Методички'!N107='Бланк Методички'!$T$13,5,IF('Бланк Методички'!N107='Бланк Методички'!$T$14,6,IF('Бланк Методички'!N107='Бланк Методички'!$T$15,7,IF('Бланк Методички'!N107='Бланк Методички'!$T$16,8,IF('Бланк Методички'!N107='Бланк Методички'!$T$17,9,IF('Бланк Методички'!N107='Бланк Методички'!$T$18,10,))))))))))","v":0},99]
[null,null,null,null,null,null,null,null,null,null,null,{"$f":"IF('Бланк Методички'!N108='Бланк Методички'!$T$9,1,IF('Бланк Методички'!N108='Бланк Методички'!$T$10,2,IF('Бланк Методички'!N108='Бланк Методички'!$T$11,3,IF('Бланк Методички'!N108='Бланк Методички'!$T$12,4,IF('Бланк Методички'!N108='Бланк Методички'!$T$13,5,IF('Бланк Методички'!N108='Бланк Методички'!$T$14,6,IF('Бланк Методички'!N108='Бланк Методички'!$T$15,7,IF('Бланк Методички'!N108='Бланк Методички'!$T$16,8,IF('Бланк Методички'!N108='Бланк Методички'!$T$17,9,IF('Бланк Методички'!N108='Бланк Методички'!$T$18,10,))))))))))","v":0},100]

{"sheet":"Результат","index":2,"n_rows":42,"n_cols":8,"rows_kept":42,"cut":false,"hidden":false,"merged":[[41,5,41,8],[4,0,4,1],[5,0,5,1],[8,0,8,1],[4,7,4,8],[4,2,4,3],[5,2,5,3],[6,2,6,3],[7,2,7,3],[8,2,8,3],[4,5,4,6],[5,5,5,6],[6,5,6,6],[7,5,7,6],[8,5,8,6],[5,7,5,8],[34,0,34,8],[29,0,29,8],[30,0,30,8],[31,0,31,8],[32,0,32,8],[33,0,33,8],[0,0,0,8],[2,7,2,8],[2,1,2,5],[7,0,7,1],[28,0,28,8],[6,0,6,1],[6,7,6,8],[7,7,7,8],[8,7,8,8],[40,0,40,8],[35,0,35,8],[36,0,36,8],[37,0,37,8],[38,0,38,8],[39,0,39,8]]}
["Тест юмористических фраз"]
[]
["ФИО",{"$f":"PROPER('Бланк Методички'!D2)","v":""},null,null,null,null,"Дата",{"$f":"TODAY()","v":"2018-04-21"}]
[]
["Агрессия — самозащита",null,{"$f":"'Обработка результатов'!A2","v":0},null,null,"Карьера",null,{"$f":"'Обработка результатов'!F2","v":0}]
["Межполовые отношения",null,{"$f":"'Обработка результатов'!B2","v":0},null,null,"Семейные неурядицы",null,{"$f":"'Обработка результатов'!G2","v":0}]
["Пагубные привычки",null,{"$f":"'Обработка результатов'!C2","v":0},null,null,"Социальные проблемы",null,{"$f":"'Обработка результатов'!H2","v":0}]
["Деньги",null,{"$f":"'Обработка результатов'!D2","v":0},null,null,"Бездарность в искусстве",null,{"$f":"'Обработка результатов'!I2","v":0}]
["Мода",null,{"$f":"'Обработка результатов'!E2","v":0},null,null,"Человеческая глупость",null,{"$f":"'Обработка результатов'!J2","v":0}]
[]
[]
[]
[]
[]
[]
[]
[]
[]
[]
[]
[]
[]
[]
[]
[]
[]
[]
[]
[]
[]
[]
[]
[]
[]
[]
[]
[]
[]
[]
[]
[]
[null,null,null,null,null,"http://eschool.by/psy"]

{"sheet":"Результаты с расшифровкой","index":3,"n_rows":42,"n_cols":8,"rows_kept":42,"cut":false,"hidden":false,"merged":[[0,0,0,8],[2,1,2,5],[2,7,2,8],[4,0,4,1],[4,2,4,3],[4,5,4,6],[4,7,4,8],[5,0,5,1],[5,2,5,3],[5,5,5,6],[5,7,5,8],[6,0,6,1],[6,2,6,3],[6,5,6,6],[6,7,6,8],[7,0,7,1],[7,2,7,3],[7,5,7,6],[7,7,7,8],[8,0,8,1],[8,2,8,3],[8,5,8,6],[8,7,8,8],[41,5,41,8],[11,0,11,3],[33,0,33,8],[27,0,27,8],[30,0,30,8],[34,4,35,8],[34,0,35,3],[12,0,12,8],[15,0,15,8],[36,0,36,8],[37,0,38,3],[37,4,38,8],[31,0,32,3],[31,4,32,8],[22,0,23,3],[21,0,21,8],[24,0,24,8],[10,0,10,8],[16,0,17,3],[18,0,18,8],[13,4,14,8],[13,0,14,3],[16,4,17,8],[19,0,20,3],[19,4,20,8],[11,4,11,8],[25,0,26,3],[25,4,26,8],[28,0,29,3],[28,4,29,8],[22,4,23,8]]}
["Тест юмористических фраз"]
[]
["ФИО",{"$f":"PROPER('Бланк Методички'!D2)","v":""},null,null,null,null,"Дата",{"$f":"TODAY()","v":"2018-04-21"}]
[]
["Агрессия — самозащита",null,{"$f":"'Обработка результатов'!A2","v":0},null,null,"Карьера",null,{"$f":"'Обработка результатов'!F2","v":0}]
["Межполовые отношения",null,{"$f":"'Обработка результатов'!B2","v":0},null,null,"Семейные неурядицы",null,{"$f":"'Обработка результатов'!G2","v":0}]
["Пагубные привычки",null,{"$f":"'Обработка результатов'!C2","v":0},null,null,"Социальные проблемы",null,{"$f":"'Обработка результатов'!H2","v":0}]
["Деньги",null,{"$f":"'Обработка результатов'!D2","v":0},null,null,"Бездарность в искусстве",null,{"$f":"'Обработка результатов'!I2","v":0}]
["Мода",null,{"$f":"'Обработка результатов'!E2","v":0},null,null,"Человеческая глупость",null,{"$f":"'Обработка результатов'!J2","v":0}]
[]
["Интерпретация различий мотивов и преград"]
["Мотивы",null,null,null,"Преграды"]
["Агрессия (самозащита)"]
["Самосохранение",null,null,null,"Различные «агрессивные» факторы, угрожающие физической целостности индивида"]
[]
["Взаимоотношения полов"]
["Интимно-сексуальные отношения, разрядка напряжения при сексуальной неудовлетворенности",null,null,null,"Внутренние трудности (недостаточная привлекательность, скромность, скованность), социальные запреты"]
[]
["Пагубные пристрастия (пьянство)"]
["Употребление спиртного, снятие напряжения с помощью психофармакологических средств",null,null,null,"Внешние трудности, интериоризированные субъектом социальные запреты, проявляющиеся в чувстве вины, стыда"]
[]
["Деньги"]
["Личное материальное благополучие",null,null,null,"Недостаток денег, высокие цены, низкий уровень жизни"]
[]
["Мода"]
["Престиж, самовыражение посредством внешних атрибутов успеха, самоподача",null,null,null,"Скачки моды, неудовлетворительный выбор желаемого товара, высокая цена престижной одежды"]
[]
["Карьера"]
["Достижение высокого положения, признания в обществе за счет продвижения по служебной лестнице",null,null,null,"Конкуренция, необходимость компромиссов, унижений, приспособления, интриг и т. п."]
[]
["Семейные неурядицы"]
["Семейное благополучие",null,null,null,"Несоответствие поступков членов семьи ожиданиям субъекта или объективные трудности"]
[]
["Человеческая глупость"]
["Познание, стремление к истине как самостоятельной ценности, самоутверждение в обладании истинным знанием",null,null,null,"Невежество, ограниченность окружающих"]
[]
["Бездарность в искусстве"]
["Поиск красоты, гармонии, эстетическая сензитивность",null,null,null,"Обилие бездарности, эстетическая беспринципность «людей искусства»"]
[]
[]
[]
[null,null,null,null,null,"http://eschool.by/psy"]

{"sheet":"Контакты","index":4,"n_rows":9,"n_cols":6,"rows_kept":9,"cut":false,"hidden":false,"merged":[[1,1,4,10],[5,5,5,10],[6,5,6,10],[7,5,7,10],[8,5,8,10],[6,1,6,4],[5,1,5,4],[7,1,7,4],[8,1,8,4]]}
[]
[null,"Если вы заметили ошибки в работе теста или хотите улучшить его работу, пишите любым удобным для Вас способом"]
[]
[]
[]
[null,"Site:",null,null,null,"eschool.by/psy"]
[null,"Viber / Telegram:",null,null,null,"8 (029) 550 8 198"]
[null,"VK:",null,null,null,"www.vk.com/blari"]
[null,"Facebook:",null,null,null,"www.fb.com/blarior"]